Workbook

Sheet Лист1
D3: Заёмщик | J3: Заёмщик
D5: Расчётный счёт | J5: Расчётный счёт
D7: Юридический адрес | J7: Юридический адрес
D11: График платежей
B13: По кредитному договору № | J13: По кредитному договору №
B14: Сумма кредита | D14: 4275000 | F14: (четыре миллиона двести семьдесят пять тысяч)рублей | J14: Сумма кредита
B15: Кредит выдан | D15: 2013-03-12 | J15: Кредит выдан
B16: Процентная ставка | D16: 0.14 | E16: годовых | J16: Процентная ставка
B17: Срок первого платежа по % согласно графика | F17: 2013-03-27 | J17: Ставка рефинансирования
B18: Ежемесячный платёж руб. | F18: 55000 | J18: Субс. доля ставки ФБ
B19: Отсрочка погашения процентов мес. | F19: 0 | J19: Субс. доля ставки ОБ
B20: Отсрочка погашения осн. долга мес. | F20: 6 | J20: Удельный вес:
B21: Заёмщику открыт ссудный счёт № | J21: На животноводство
B22: Кредит выдан на срок мес. | F22: 10 | J22: На растениеводство
F23: 20
A24: № пла-тежа | B24: Дата платежа | C24: Период платежа | D24: Годовая база | E24: Сумма месячного платежа(руб) | F24: Остаток кредита(руб) | G24: Процент за пользование кредитом (руб) | H24: Сумма общего платежа(руб) | I24: % | J24: период платежа | K24: дни | L24: %% | M24: сумма длога на конец периода | N24: сумма долга на начало периода | AA24: =IF(A19>=$D$13,"",A19+1) -> 
A25: 1 | B25: 2 | C25: 3 | D25: 4 | E25: 5 | F25: 6 | G25: 7 | H25: 8
A26: =ROW(Лист1!$A26)-26 -> 0 | B26: =$D$15 -> 2013-03-12 | F26: 0 | G26: 0 | H26: 0 | M26: =$D$14 -> 4275000
A27: =ROW(Лист1!$A27)-26 -> 1 | B27: =IF(A27="",IF(AND(A27="",A26=""),"","ИТОГО:"),DATE(YEAR(B26),MONTH(B26)+1,DAY(B26))) -> 2013-04-12 | C27: =IF(A27="",IF(AND(A27="",A26=""),"",SUM($C$26:C26)),B27-B26) -> 31 | D27: =IF(MOD(YEAR(B27),4)=0,366,365) -> 365 | E27: =IF(A27="",IF(AND(A27="",A26=""),"",SUM($E$26:E26)),IF(A27<=$F$20,0,IF(A27="",0,$F$18))) -> 0 | F27: =IF(A27="",IF(AND(A27="",A26=""),"",SUM($F$26:F26)),IF(P27=0,M27,O27)) -> 4275000 | G27: =IF(A27="",IF(AND(A27="",A26=""),"",SUM($G$26:G26)),IF(A27<=$F$19,0,IF(A27="",0,IF(P27=0,I27,L27)))) -> 50831.50685 | H27: =IF(A27="",IF(AND(A27="",A26=""),"",SUM($H$26:H26)),E27+G27) -> 50831.50685 | I27: =IF(A27="","",N27*$D$16*C27/D27) -> 50831.50685 | J27: =IF(A27="","","с "&TEXT(B27+1,"ДД.ММ.ГГГГ")&" по "&TEXT(B28,"ДД.ММ.ГГГГ")) -> с 13.04.2013 по 12.05.2013 | K27: =IF(A27="","",C27) -> 31 | L27: =IF(A27="","",P27) -> 0 | M27: =IF(A27="","",N27-E27) -> 4275000 | N27: =IF(A27="","",M26) -> 4275000
A28: =ROW(Лист1!$A28)-26 -> 2 | B28: 2013-05-12 | C28: =IF(A28="",IF(AND(A28="",A27=""),"",SUM($C$26:C27)),B28-B27) -> 30 | D28: =IF(MOD(YEAR(B28),4)=0,366,365) -> 365 | E28: =IF(A28="",IF(AND(A28="",A27=""),"",SUM($E$26:E27)),IF(A28<=$F$20,0,IF(A28="",0,$F$18))) -> 0 | F28: =IF(A28="",IF(AND(A28="",A27=""),"",SUM($F$26:F27)),IF(P28=0,M28,O28)) -> 4275000 | G28: =IF(A28="",IF(AND(A28="",A27=""),"",SUM($G$26:G27)),IF(A28<=$F$19,0,IF(A28="",0,IF(P28=0,I28,L28)))) -> 49191.78082 | H28: =IF(A28="",IF(AND(A28="",A27=""),"",SUM($H$26:H27)),E28+G28) -> 49191.78082 | I28: 49191.78082 | J28: =IF(A28="","","с "&TEXT(B28+1,"ДД.ММ.ГГГГ")&" по "&TEXT(B29,"ДД.ММ.ГГГГ")) -> с 13.05.2013 по 12.06.2013 | K28: =IF(A28="","",C28) -> 30 | L28: 0 | M28: 4275000 | N28: 4275000
A29: =ROW(Лист1!$A29)-26 -> 3 | B29: 2013-06-12 | C29: =IF(A29="",IF(AND(A29="",A28=""),"",SUM($C$26:C28)),B29-B28) -> 31 | D29: 365 | E29: =IF(A29="",IF(AND(A29="",A28=""),"",SUM($E$26:E28)),IF(A29<=$F$20,0,IF(A29="",0,$F$18))) -> 0 | F29: =IF(A29="",IF(AND(A29="",A28=""),"",SUM($F$26:F28)),IF(P29=0,M29,O29)) -> 4275000 | G29: =IF(A29="",IF(AND(A29="",A28=""),"",SUM($G$26:G28)),IF(A29<=$F$19,0,IF(A29="",0,IF(P29=0,I29,L29)))) -> 50831.50685 | H29: =IF(A29="",IF(AND(A29="",A28=""),"",SUM($H$26:H28)),E29+G29) -> 50831.50685 | I29: 50831.50685 | J29: с 13.06.2013 по 12.07.2013 | K29: 31 | L29: 0 | M29: 4275000 | N29: 4275000
A30: =ROW(Лист1!$A30)-26 -> 4 | B30: 2013-07-12 | C30: =IF(A30="",IF(AND(A30="",A29=""),"",SUM($C$26:C29)),B30-B29) -> 30 | D30: 365 | E30: =IF(A30="",IF(AND(A30="",A29=""),"",SUM($E$26:E29)),IF(A30<=$F$20,0,IF(A30="",0,$F$18))) -> 0 | F30: =IF(A30="",IF(AND(A30="",A29=""),"",SUM($F$26:F29)),IF(P30=0,M30,O30)) -> 4275000 | G30: =IF(A30="",IF(AND(A30="",A29=""),"",SUM($G$26:G29)),IF(A30<=$F$19,0,IF(A30="",0,IF(P30=0,I30,L30)))) -> 49191.78082 | H30: =IF(A30="",IF(AND(A30="",A29=""),"",SUM($H$26:H29)),E30+G30) -> 49191.78082 | I30: 49191.78082 | J30: с 13.07.2013 по 12.08.2013 | K30: 30 | L30: 0 | M30: 4275000 | N30: 4275000
A31: =ROW(Лист1!$A31)-26 -> 5 | B31: 2013-08-12 | C31: =IF(A31="",IF(AND(A31="",A30=""),"",SUM($C$26:C30)),B31-B30) -> 31 | D31: 365 | E31: =IF(A31="",IF(AND(A31="",A30=""),"",SUM($E$26:E30)),IF(A31<=$F$20,0,IF(A31="",0,$F$18))) -> 0 | F31: =IF(A31="",IF(AND(A31="",A30=""),"",SUM($F$26:F30)),IF(P31=0,M31,O31)) -> 4275000 | G31: =IF(A31="",IF(AND(A31="",A30=""),"",SUM($G$26:G30)),IF(A31<=$F$19,0,IF(A31="",0,IF(P31=0,I31,L31)))) -> 50831.50685 | H31: =IF(A31="",IF(AND(A31="",A30=""),"",SUM($H$26:H30)),E31+G31) -> 50831.50685 | I31: 50831.50685 | J31: с 13.08.2013 по 12.09.2013 | K31: 31 | L31: 0 | M31: 4275000 | N31: 4275000
A32: =ROW(Лист1!$A32)-26 -> 6 | B32: 2013-09-12 | C32: =IF(A32="",IF(AND(A32="",A31=""),"",SUM($C$26:C31)),B32-B31) -> 31 | D32: 365 | E32: =IF(A32="",IF(AND(A32="",A31=""),"",SUM($E$26:E31)),IF(A32<=$F$20,0,IF(A32="",0,$F$18))) -> 0 | F32: =IF(A32="",IF(AND(A32="",A31=""),"",SUM($F$26:F31)),IF(P32=0,M32,O32)) -> 4275000 | G32: =IF(A32="",IF(AND(A32="",A31=""),"",SUM($G$26:G31)),IF(A32<=$F$19,0,IF(A32="",0,IF(P32=0,I32,L32)))) -> 50831.50685 | H32: =IF(A32="",IF(AND(A32="",A31=""),"",SUM($H$26:H31)),E32+G32) -> 50831.50685 | I32: 50831.50685 | J32: =IF(A32="","","с "&TEXT(B32+1,"ДД.ММ.ГГГГ")&" по "&TEXT(B33,"ДД.ММ.ГГГГ")) -> с 13.09.2013 по 12.10.2013 | K32: 31 | L32: 0 | M32: 4275000 | N32: 4275000
A33: =ROW(Лист1!$A33)-26 -> 7 | B33: 2013-10-12 | C33: =IF(A33="",IF(AND(A33="",A32=""),"",SUM($C$26:C32)),B33-B32) -> 30 | D33: 365 | E33: =IF(A33="",IF(AND(A33="",A32=""),"",SUM($E$26:E32)),IF(A33<=$F$20,0,IF(A33="",0,$F$18))) -> 55000 | F33: =IF(A33="",IF(AND(A33="",A32=""),"",SUM($F$26:F32)),IF(P33=0,M33,O33)) -> 4220000 | G33: =IF(A33="",IF(AND(A33="",A32=""),"",SUM($G$26:G32)),IF(A33<=$F$19,0,IF(A33="",0,IF(P33=0,I33,L33)))) -> 49191.78082 | H33: =IF(A33="",IF(AND(A33="",A32=""),"",SUM($H$26:H32)),E33+G33) -> 104191.7808 | I33: 49191.78082 | J33: с 13.10.2013 по 12.11.2013 | K33: 30 | L33: 0 | M33: 4220000 | N33: 4275000
A34: =ROW(Лист1!$A34)-26 -> 8 | B34: 2013-11-12 | C34: =IF(A34="",IF(AND(A34="",A33=""),"",SUM($C$26:C33)),B34-B33) -> 31 | D34: 365 | E34: =IF(A34="",IF(AND(A34="",A33=""),"",SUM($E$26:E33)),IF(A34<=$F$20,0,IF(A34="",0,$F$18))) -> 55000 | F34: =IF(A34="",IF(AND(A34="",A33=""),"",SUM($F$26:F33)),IF(P34=0,M34,O34)) -> 4165000 | G34: =IF(A34="",IF(AND(A34="",A33=""),"",SUM($G$26:G33)),IF(A34<=$F$19,0,IF(A34="",0,IF(P34=0,I34,L34)))) -> 50177.53425 | H34: =IF(A34="",IF(AND(A34="",A33=""),"",SUM($H$26:H33)),E34+G34) -> 105177.5342 | I34: 50177.53425 | J34: с 13.11.2013 по 12.12.2013 | K34: 31 | L34: 0 | M34: 4165000 | N34: 4220000
A35: =ROW(Лист1!$A35)-26 -> 9 | B35: 2013-12-12 | C35: =IF(A35="",IF(AND(A35="",A34=""),"",SUM($C$26:C34)),B35-B34) -> 30 | D35: 365 | E35: =IF(A35="",IF(AND(A35="",A34=""),"",SUM($E$26:E34)),IF(A35<=$F$20,0,IF(A35="",0,$F$18))) -> 55000 | F35: =IF(A35="",IF(AND(A35="",A34=""),"",SUM($F$26:F34)),IF(P35=0,M35,O35)) -> 4110000 | G35: =IF(A35="",IF(AND(A35="",A34=""),"",SUM($G$26:G34)),IF(A35<=$F$19,0,IF(A35="",0,IF(P35=0,I35,L35)))) -> 47926.0274 | H35: =IF(A35="",IF(AND(A35="",A34=""),"",SUM($H$26:H34)),E35+G35) -> 102926.0274 | I35: 47926.0274 | J35: с 13.12.2013 по 12.01.2014 | K35: 30 | L35: 0 | M35: 4110000 | N35: 4165000
A36: =ROW(Лист1!$A36)-26 -> 10 | B36: 2014-01-12 | C36: =IF(A36="",IF(AND(A36="",A35=""),"",SUM($C$26:C35)),B36-B35) -> 31 | D36: 365 | E36: =IF(A36="",IF(AND(A36="",A35=""),"",SUM($E$26:E35)),IF(A36<=$F$20,0,IF(A36="",0,$F$18))) -> 55000 | F36: =IF(A36="",IF(AND(A36="",A35=""),"",SUM($F$26:F35)),IF(P36=0,M36,O36)) -> 4055000 | G36: =IF(A36="",IF(AND(A36="",A35=""),"",SUM($G$26:G35)),IF(A36<=$F$19,0,IF(A36="",0,IF(P36=0,I36,L36)))) -> 48869.58904 | H36: =IF(A36="",IF(AND(A36="",A35=""),"",SUM($H$26:H35)),E36+G36) -> 103869.589 | I36: 48869.58904 | J36: с 13.01.2014 по 12.02.2014 | K36: 31 | L36: 0 | M36: 4055000 | N36: 4110000
A37: =ROW(Лист1!$A37)-26 -> 11 | B37: 2014-02-12 | C37: =IF(A37="",IF(AND(A37="",A36=""),"",SUM($C$26:C36)),B37-B36) -> 31 | D37: 365 | E37: =IF(A37="",IF(AND(A37="",A36=""),"",SUM($E$26:E36)),IF(A37<=$F$20,0,IF(A37="",0,$F$18))) -> 55000 | F37: =IF(A37="",IF(AND(A37="",A36=""),"",SUM($F$26:F36)),IF(P37=0,M37,O37)) -> 4000000 | G37: =IF(A37="",IF(AND(A37="",A36=""),"",SUM($G$26:G36)),IF(A37<=$F$19,0,IF(A37="",0,IF(P37=0,I37,L37)))) -> 48215.61644 | H37: =IF(A37="",IF(AND(A37="",A36=""),"",SUM($H$26:H36)),E37+G37) -> 103215.6164 | I37: 48215.61644 | J37: =IF(A37="","","с "&TEXT(B37+1,"ДД.ММ.ГГГГ")&" по "&TEXT(B38,"ДД.ММ.ГГГГ")) -> с 13.02.2014 по 12.03.2014 | K37: 31 | L37: 0 | M37: 4000000 | N37: 4055000
A38: =ROW(Лист1!$A38)-26 -> 12 | B38: 2014-03-12 | C38: =IF(A38="",IF(AND(A38="",A37=""),"",SUM($C$26:C37)),B38-B37) -> 28 | D38: 365 | E38: =IF(A38="",IF(AND(A38="",A37=""),"",SUM($E$26:E37)),IF(A38<=$F$20,0,IF(A38="",0,$F$18))) -> 55000 | F38: =IF(A38="",IF(AND(A38="",A37=""),"",SUM($F$26:F37)),IF(P38=0,M38,O38)) -> 3945000 | G38: =IF(A38="",IF(AND(A38="",A37=""),"",SUM($G$26:G37)),IF(A38<=$F$19,0,IF(A38="",0,IF(P38=0,I38,L38)))) -> 42958.90411 | H38: =IF(A38="",IF(AND(A38="",A37=""),"",SUM($H$26:H37)),E38+G38) -> 97958.90411 | I38: =IF(A38="","",N38*$D$16*C38/D38) -> 42958.90411 | J38: =IF(A38="","","с "&TEXT(B38+1,"ДД.ММ.ГГГГ")&" по "&TEXT(B39,"ДД.ММ.ГГГГ")) -> с 13.03.2014 по 12.04.2014 | K38: =IF(A38="","",C38) -> 28 | L38: =IF(A38="","",P38) -> 0 | M38: =IF(A38="","",N38-E38) -> 3945000 | N38: =IF(A38="","",M37) -> 4000000
A39: =ROW(Лист1!$A39)-26 -> 13 | B39: 2014-04-12 | C39: =IF(A39="",IF(AND(A39="",A38=""),"",SUM($C$26:C38)),B39-B38) -> 31 | D39: 365 | E39: =IF(A39="",IF(AND(A39="",A38=""),"",SUM($E$26:E38)),IF(A39<=$F$20,0,IF(A39="",0,$F$18))) -> 55000 | F39: =IF(A39="",IF(AND(A39="",A38=""),"",SUM($F$26:F38)),IF(P39=0,M39,O39)) -> 3890000 | G39: =IF(A39="",IF(AND(A39="",A38=""),"",SUM($G$26:G38)),IF(A39<=$F$19,0,IF(A39="",0,IF(P39=0,I39,L39)))) -> 46907.67123 | H39: =IF(A39="",IF(AND(A39="",A38=""),"",SUM($H$26:H38)),E39+G39) -> 101907.6712 | I39: =IF(A39="","",N39*$D$16*C39/D39) -> 46907.67123 | J39: =IF(A39="","","с "&TEXT(B39+1,"ДД.ММ.ГГГГ")&" по "&TEXT(B40,"ДД.ММ.ГГГГ")) -> с 13.04.2014 по 12.05.2014 | K39: =IF(A39="","",C39) -> 31 | L39: =IF(A39="","",P39) -> 0 | M39: =IF(A39="","",N39-E39) -> 3890000 | N39: =IF(A39="","",M38) -> 3945000
A40: 14 | B40: 2014-05-12 | C40: =IF(A40="",IF(AND(A40="",A39=""),"",SUM($C$26:C39)),B40-B39) -> 30 | D40: 365 | E40: =IF(A40="",IF(AND(A40="",A39=""),"",SUM($E$26:E39)),IF(A40<=$F$20,0,IF(A40="",0,$F$18))) -> 55000 | F40: =IF(A40="",IF(AND(A40="",A39=""),"",SUM($F$26:F39)),IF(P40=0,M40,O40)) -> 3835000 | G40: =IF(A40="",IF(AND(A40="",A39=""),"",SUM($G$26:G39)),IF(A40<=$F$19,0,IF(A40="",0,IF(P40=0,I40,L40)))) -> 44761.64384 | H40: =IF(A40="",IF(AND(A40="",A39=""),"",SUM($H$26:H39)),E40+G40) -> 99761.64384 | I40: =IF(A40="","",N40*$D$16*C40/D40) -> 44761.64384 | J40: =IF(A40="","","с "&TEXT(B40+1,"ДД.ММ.ГГГГ")&" по "&TEXT(B41,"ДД.ММ.ГГГГ")) -> с 13.05.2014 по ИТОГО: | K40: =IF(A40="","",C40) -> 30 | L40: =IF(A40="","",P40) -> 0 | M40: =IF(A40="","",N40-E40) -> 3835000 | N40: =IF(A40="","",M39) -> 3890000
A41: =IF(A40>=$F$22,"",A40+1) ->  | B41: =IF(A41="",IF(AND(A41="",A40=""),"","ИТОГО:"),DATE(YEAR(B40),MONTH(B40)+1,DAY(B40))) -> ИТОГО: | C41: =IF(A41="",IF(AND(A41="",A40=""),"",SUM($C$26:C40)),B41-B40) -> 426 | E41: =IF(A41="",IF(AND(A41="",A40=""),"",SUM($E$26:E40)),IF(A41<=$F$20,0,IF(A41="",0,$F$18))) -> 440000 | F41: =IF(A41="",IF(AND(A41="",A40=""),"",SUM($F$26:F40)),IF(P41=0,M41,O41)) -> 57870000 | G41: =IF(A41="",IF(AND(A41="",A40=""),"",SUM($G$26:G40)),IF(A41<=$F$19,0,IF(A41="",0,IF(P41=0,I41,L41)))) -> 680718.3562 | H41: =IF(A41="",IF(AND(A41="",A40=""),"",SUM($H$26:H40)),E41+G41) -> 1120718.356 | I41: =IF(A41="","",N41*$D$16*C41/D41) ->  | J41: =IF(A41="","","с "&TEXT(B41+1,"ДД.ММ.ГГГГ")&" по "&TEXT(B42,"ДД.ММ.ГГГГ")) ->  | K41: =IF(A41="","",C41) ->  | L41: =IF(A41="","",P41) ->  | M41: =IF(A41="","",N41-E41) ->  | N41: =IF(A41="","",M40) -> 
A42: =IF(A41>=$F$22,"",A41+1) ->  | B42: =IF(A42="",IF(AND(A42="",A41=""),"","ИТОГО:"),DATE(YEAR(B41),MONTH(B41)+1,DAY(B41))) ->  | C42: =IF(A42="",IF(AND(A42="",A41=""),"",SUM($C$26:C41)),B42-B41) ->  | E42: =IF(A42="",IF(AND(A42="",A41=""),"",SUM($E$26:E41)),IF(A42<=$F$20,0,IF(A42="",0,$F$18))) ->  | F42: =IF(A42="",IF(AND(A42="",A41=""),"",SUM($F$26:F41)),IF(P42=0,M42,O42)) ->  | G42: =IF(A42="",IF(AND(A42="",A41=""),"",SUM($G$26:G41)),IF(A42<=$F$19,0,IF(A42="",0,IF(P42=0,I42,L42)))) ->  | H42: =IF(A42="",IF(AND(A42="",A41=""),"",SUM($H$26:H41)),E42+G42) ->  | I42: =IF(A42="","",N42*$D$16*C42/D42) ->  | J42: =IF(A42="","","с "&TEXT(B42+1,"ДД.ММ.ГГГГ")&" по "&TEXT(B43,"ДД.ММ.ГГГГ")) ->  | K42: =IF(A42="","",C42) ->  | L42: =IF(A42="","",P42) ->  | M42: =IF(A42="","",N42-E42) ->  | N42: =IF(A42="","",M41) -> 
C43: =IF(A43="",IF(AND(A43="",A42=""),"",SUM($C$26:C42)),B43-B42) ->  | E43: =IF(A43="",IF(AND(A43="",A42=""),"",SUM($E$26:E42)),IF(A43<=$F$20,0,IF(A43="",0,$F$18))) ->  | F43: =IF(A43="",IF(AND(A43="",A42=""),"",SUM($F$26:F42)),IF(P43=0,M43,O43)) ->  | G43: =IF(A43="",IF(AND(A43="",A42=""),"",SUM($G$26:G42)),IF(A43<=$F$19,0,IF(A43="",0,IF(P43=0,I43,L43)))) ->  | H43: =IF(A43="",IF(AND(A43="",A42=""),"",SUM($H$26:H42)),E43+G43) ->  | I43: =IF(A43="","",N43*$D$16*C43/D43) ->  | J43: =IF(A43="","","с "&TEXT(B43+1,"ДД.ММ.ГГГГ")&" по "&TEXT(B44,"ДД.ММ.ГГГГ")) ->  | K43: =IF(A43="","",C43) ->  | L43: =IF(A43="","",P43) ->  | M43: =IF(A43="","",N43-E43) ->  | N43: =IF(A43="","",M42) -> 
C44: =IF(A44="",IF(AND(A44="",A43=""),"",SUM($C$26:C43)),B44-B43) ->  | E44: =IF(A44="","",IF(A44<=$F$20,0,IF(A44="",0,$F$18))) ->  | F44: =IF(A44="",IF(AND(A44="",A43=""),"",SUM($F$26:F43)),IF(P44=0,M44,O44)) ->  | G44: =IF(A44="",IF(AND(A44="",A43=""),"",SUM($G$26:G43)),IF(A44<=$F$19,0,IF(A44="",0,IF(P44=0,I44,L44)))) ->  | H44: =IF(A44="",IF(AND(A44="",A43=""),"",SUM($H$26:H43)),E44+G44) ->  | I44: =IF(A44="","",N44*$D$16*C44/D44) ->  | J44: =IF(A44="","","с "&TEXT(B44+1,"ДД.ММ.ГГГГ")&" по "&TEXT(B45,"ДД.ММ.ГГГГ")) ->  | K44: =IF(A44="","",C44) ->  | L44: =IF(A44="","",P44) ->  | M44: =IF(A44="","",N44-E44) ->  | N44: =IF(A44="","",M43) -> 
C45: =IF(A45="",IF(AND(A45="",A44=""),"",SUM($C$26:C44)),B45-B44) ->  | F45: =IF(A45="",IF(AND(A45="",A44=""),"",SUM($F$26:F44)),IF(P45=0,M45,O45)) ->  | G45: =IF(A45="",IF(AND(A45="",A44=""),"",SUM($G$26:G44)),IF(A45<=$F$19,0,IF(A45="",0,IF(P45=0,I45,L45)))) ->  | H45: =IF(A45="",IF(AND(A45="",A44=""),"",SUM($H$26:H44)),E45+G45) ->  | I45: =IF(A45="","",N45*$D$16*C45/D45) ->  | J45: =IF(A45="","","с "&TEXT(B45+1,"ДД.ММ.ГГГГ")&" по "&TEXT(B46,"ДД.ММ.ГГГГ")) ->  | K45: =IF(A45="","",C45) ->  | L45: =IF(A45="","",P45) ->  | M45: =IF(A45="","",N45-E45) ->  | N45: =IF(A45="","",M44) -> 
C46: =IF(A46="",IF(AND(A46="",A45=""),"",SUM($C$26:C45)),B46-B45) ->  | F46: =IF(A46="",IF(AND(A46="",A45=""),"",SUM($F$26:F45)),IF(P46=0,M46,O46)) ->  | G46: =IF(A46="",IF(AND(A46="",A45=""),"",SUM($G$26:G45)),IF(A46<=$F$19,0,IF(A46="",0,IF(P46=0,I46,L46)))) ->  | H46: =IF(A46="",IF(AND(A46="",A45=""),"",SUM($H$26:H45)),E46+G46) ->  | I46: =IF(A46="","",N46*$D$16*C46/D46) ->  | J46: =IF(A46="","","с "&TEXT(B46+1,"ДД.ММ.ГГГГ")&" по "&TEXT(B47,"ДД.ММ.ГГГГ")) ->  | K46: =IF(A46="","",C46) ->  | L46: =IF(A46="","",P46) ->  | M46: =IF(A46="","",N46-E46) ->  | N46: =IF(A46="","",M45) -> 
C47: =IF(A47="",IF(AND(A47="",A46=""),"",SUM($C$26:C46)),B47-B46) ->  | F47: =IF(A47="",IF(AND(A47="",A46=""),"",SUM($F$26:F46)),IF(P47=0,M47,O47)) ->  | G47: =IF(A47="",IF(AND(A47="",A46=""),"",SUM($G$26:G46)),IF(A47<=$F$19,0,IF(A47="",0,IF(P47=0,I47,L47)))) ->  | H47: =IF(A47="",IF(AND(A47="",A46=""),"",SUM($H$26:H46)),E47+G47) ->  | I47: =IF(A47="","",N47*$D$16*C47/D47) ->  | J47: =IF(A47="","","с "&TEXT(B47+1,"ДД.ММ.ГГГГ")&" по "&TEXT(B48,"ДД.ММ.ГГГГ")) ->  | K47: =IF(A47="","",C47) ->  | L47: =IF(A47="","",P47) ->  | M47: =IF(A47="","",N47-E47) ->  | N47: =IF(A47="","",M46) -> 
C48: =IF(A48="",IF(AND(A48="",A47=""),"",SUM($C$26:C47)),B48-B47) ->  | F48: =IF(A48="",IF(AND(A48="",A47=""),"",SUM($F$26:F47)),IF(P48=0,M48,O48)) ->  | G48: =IF(A48="",IF(AND(A48="",A47=""),"",SUM($G$26:G47)),IF(A48<=$F$19,0,IF(A48="",0,IF(P48=0,I48,L48)))) ->  | H48: =IF(A48="",IF(AND(A48="",A47=""),"",SUM($H$26:H47)),E48+G48) ->  | I48: =IF(A48="","",N48*$D$16*C48/D48) ->  | J48: =IF(A48="","","с "&TEXT(B48+1,"ДД.ММ.ГГГГ")&" по "&TEXT(B49,"ДД.ММ.ГГГГ")) ->  | K48: =IF(A48="","",C48) ->  | L48: =IF(A48="","",P48) ->  | M48: =IF(A48="","",N48-E48) ->  | N48: =IF(A48="","",M47) -> 
C49: =IF(A49="",IF(AND(A49="",A48=""),"",SUM($C$26:C48)),B49-B48) ->  | F49: =IF(A49="",IF(AND(A49="",A48=""),"",SUM($F$26:F48)),IF(P49=0,M49,O49)) ->  | G49: =IF(A49="",IF(AND(A49="",A48=""),"",SUM($G$26:G48)),IF(A49<=$F$19,0,IF(A49="",0,IF(P49=0,I49,L49)))) ->  | H49: =IF(A49="",IF(AND(A49="",A48=""),"",SUM($H$26:H48)),E49+G49) ->  | I49: =IF(A49="","",N49*$D$16*C49/D49) ->  | J49: =IF(A49="","","с "&TEXT(B49+1,"ДД.ММ.ГГГГ")&" по "&TEXT(B50,"ДД.ММ.ГГГГ")) ->  | K49: =IF(A49="","",C49) ->  | L49: =IF(A49="","",P49) ->  | M49: =IF(A49="","",N49-E49) ->  | N49: =IF(A49="","",M48) -> 
C50: =IF(A50="",IF(AND(A50="",A49=""),"",SUM($C$26:C49)),B50-B49) ->  | F50: =IF(A50="",IF(AND(A50="",A49=""),"",SUM($F$26:F49)),IF(P50=0,M50,O50)) ->  | G50: =IF(A50="",IF(AND(A50="",A49=""),"",SUM($G$26:G49)),IF(A50<=$F$19,0,IF(A50="",0,IF(P50=0,I50,L50)))) ->  | H50: =IF(A50="",IF(AND(A50="",A49=""),"",SUM($H$26:H49)),E50+G50) ->  | I50: =IF(A50="","",N50*$D$16*C50/D50) ->  | J50: =IF(A50="","","с "&TEXT(B50+1,"ДД.ММ.ГГГГ")&" по "&TEXT(B51,"ДД.ММ.ГГГГ")) ->  | K50: =IF(A50="","",C50) ->  | L50: =IF(A50="","",P50) ->  | M50: =IF(A50="","",N50-E50) ->  | N50: =IF(A50="","",M49) -> 
C51: =IF(A51="",IF(AND(A51="",A50=""),"",SUM($C$26:C50)),B51-B50) ->  | F51: =IF(A51="",IF(AND(A51="",A50=""),"",SUM($F$26:F50)),IF(P51=0,M51,O51)) ->  | G51: =IF(A51="",IF(AND(A51="",A50=""),"",SUM($G$26:G50)),IF(A51<=$F$19,0,IF(A51="",0,IF(P51=0,I51,L51)))) ->  | H51: =IF(A51="",IF(AND(A51="",A50=""),"",SUM($H$26:H50)),E51+G51) ->  | I51: =IF(A51="","",N51*$D$16*C51/D51) ->  | J51: =IF(A51="","","с "&TEXT(B51+1,"ДД.ММ.ГГГГ")&" по "&TEXT(B52,"ДД.ММ.ГГГГ")) ->  | K51: =IF(A51="","",C51) ->  | L51: =IF(A51="","",P51) ->  | M51: =IF(A51="","",N51-E51) ->  | N51: =IF(A51="","",M50) -> 
C52: =IF(A52="",IF(AND(A52="",A51=""),"",SUM($C$26:C51)),B52-B51) ->  | F52: =IF(A52="",IF(AND(A52="",A51=""),"",SUM($F$26:F51)),IF(P52=0,M52,O52)) ->  | G52: =IF(A52="",IF(AND(A52="",A51=""),"",SUM($G$26:G51)),IF(A52<=$F$19,0,IF(A52="",0,IF(P52=0,I52,L52)))) ->  | H52: =IF(A52="",IF(AND(A52="",A51=""),"",SUM($H$26:H51)),E52+G52) ->  | I52: =IF(A52="","",N52*$D$16*C52/D52) ->  | J52: =IF(A52="","","с "&TEXT(B52+1,"ДД.ММ.ГГГГ")&" по "&TEXT(B53,"ДД.ММ.ГГГГ")) ->  | K52: =IF(A52="","",C52) ->  | L52: =IF(A52="","",P52) ->  | M52: =IF(A52="","",N52-E52) ->  | N52: =IF(A52="","",M51) -> 
C53: =IF(A53="",IF(AND(A53="",A52=""),"",SUM($C$26:C52)),B53-B52) ->  | F53: =IF(A53="",IF(AND(A53="",A52=""),"",SUM($F$26:F52)),IF(P53=0,M53,O53)) ->  | G53: =IF(A53="",IF(AND(A53="",A52=""),"",SUM($G$26:G52)),IF(A53<=$F$19,0,IF(A53="",0,IF(P53=0,I53,L53)))) ->  | H53: =IF(A53="",IF(AND(A53="",A52=""),"",SUM($H$26:H52)),E53+G53) ->  | I53: =IF(A53="","",N53*$D$16*C53/D53) ->  | J53: =IF(A53="","","с "&TEXT(B53+1,"ДД.ММ.ГГГГ")&" по "&TEXT(B54,"ДД.ММ.ГГГГ")) ->  | K53: =IF(A53="","",C53) ->  | L53: =IF(A53="","",P53) ->  | M53: =IF(A53="","",N53-E53) ->  | N53: =IF(A53="","",M52) -> 
C54: =IF(A54="",IF(AND(A54="",A53=""),"",SUM($C$26:C53)),B54-B53) ->  | F54: =IF(A54="",IF(AND(A54="",A53=""),"",SUM($F$26:F53)),IF(P54=0,M54,O54)) ->  | G54: =IF(A54="",IF(AND(A54="",A53=""),"",SUM($G$26:G53)),IF(A54<=$F$19,0,IF(A54="",0,IF(P54=0,I54,L54)))) ->  | H54: =IF(A54="",IF(AND(A54="",A53=""),"",SUM($H$26:H53)),E54+G54) ->  | I54: =IF(A54="","",N54*$D$16*C54/D54) ->  | J54: =IF(A54="","","с "&TEXT(B54+1,"ДД.ММ.ГГГГ")&" по "&TEXT(B55,"ДД.ММ.ГГГГ")) ->  | K54: =IF(A54="","",C54) ->  | L54: =IF(A54="","",P54) ->  | M54: =IF(A54="","",N54-E54) ->  | N54: =IF(A54="","",M53) -> 
C55: =IF(A55="",IF(AND(A55="",A54=""),"",SUM($C$26:C54)),B55-B54) ->  | F55: =IF(A55="",IF(AND(A55="",A54=""),"",SUM($F$26:F54)),IF(P55=0,M55,O55)) ->  | G55: =IF(A55="",IF(AND(A55="",A54=""),"",SUM($G$26:G54)),IF(A55<=$F$19,0,IF(A55="",0,IF(P55=0,I55,L55)))) ->  | H55: =IF(A55="",IF(AND(A55="",A54=""),"",SUM($H$26:H54)),E55+G55) ->  | I55: =IF(A55="","",N55*$D$16*C55/D55) ->  | J55: =IF(A55="","","с "&TEXT(B55+1,"ДД.ММ.ГГГГ")&" по "&TEXT(B56,"ДД.ММ.ГГГГ")) ->  | K55: =IF(A55="","",C55) ->  | L55: =IF(A55="","",P55) ->  | M55: =IF(A55="","",N55-E55) ->  | N55: =IF(A55="","",M54) -> 
C56: =IF(A56="",IF(AND(A56="",A55=""),"",SUM($C$26:C55)),B56-B55) ->  | F56: =IF(A56="",IF(AND(A56="",A55=""),"",SUM($F$26:F55)),IF(P56=0,M56,O56)) ->  | G56: =IF(A56="",IF(AND(A56="",A55=""),"",SUM($G$26:G55)),IF(A56<=$F$19,0,IF(A56="",0,IF(P56=0,I56,L56)))) ->  | H56: =IF(A56="",IF(AND(A56="",A55=""),"",SUM($H$26:H55)),E56+G56) ->  | I56: =IF(A56="","",N56*$D$16*C56/D56) ->  | J56: =IF(A56="","","с "&TEXT(B56+1,"ДД.ММ.ГГГГ")&" по "&TEXT(B57,"ДД.ММ.ГГГГ")) ->  | K56: =IF(A56="","",C56) ->  | L56: =IF(A56="","",P56) ->  | M56: =IF(A56="","",N56-E56) ->  | N56: =IF(A56="","",M55) -> 
C57: =IF(A57="",IF(AND(A57="",A56=""),"",SUM($C$26:C56)),B57-B56) ->  | F57: =IF(A57="",IF(AND(A57="",A56=""),"",SUM($F$26:F56)),IF(P57=0,M57,O57)) ->  | G57: =IF(A57="",IF(AND(A57="",A56=""),"",SUM($G$26:G56)),IF(A57<=$F$19,0,IF(A57="",0,IF(P57=0,I57,L57)))) ->  | H57: =IF(A57="",IF(AND(A57="",A56=""),"",SUM($H$26:H56)),E57+G57) ->  | I57: =IF(A57="","",N57*$D$16*C57/D57) ->  | J57: =IF(A57="","","с "&TEXT(B57+1,"ДД.ММ.ГГГГ")&" по "&TEXT(B58,"ДД.ММ.ГГГГ")) ->  | K57: =IF(A57="","",C57) ->  | L57: =IF(A57="","",P57) ->  | M57: =IF(A57="","",N57-E57) ->  | N57: =IF(A57="","",M56) -> 
C58: =IF(A58="",IF(AND(A58="",A57=""),"",SUM($C$26:C57)),B58-B57) ->  | F58: =IF(A58="",IF(AND(A58="",A57=""),"",SUM($F$26:F57)),IF(P58=0,M58,O58)) ->  | G58: =IF(A58="",IF(AND(A58="",A57=""),"",SUM($G$26:G57)),IF(A58<=$F$19,0,IF(A58="",0,IF(P58=0,I58,L58)))) ->  | H58: =IF(A58="",IF(AND(A58="",A57=""),"",SUM($H$26:H57)),E58+G58) ->  | I58: =IF(A58="","",N58*$D$16*C58/D58) ->  | J58: =IF(A58="","","с "&TEXT(B58+1,"ДД.ММ.ГГГГ")&" по "&TEXT(B59,"ДД.ММ.ГГГГ")) ->  | K58: =IF(A58="","",C58) ->  | L58: =IF(A58="","",P58) ->  | M58: =IF(A58="","",N58-E58) ->  | N58: =IF(A58="","",M57) -> 
C59: =IF(A59="",IF(AND(A59="",A58=""),"",SUM($C$26:C58)),B59-B58) ->  | F59: =IF(A59="",IF(AND(A59="",A58=""),"",SUM($F$26:F58)),IF(P59=0,M59,O59)) ->  | G59: =IF(A59="",IF(AND(A59="",A58=""),"",SUM($G$26:G58)),IF(A59<=$F$19,0,IF(A59="",0,IF(P59=0,I59,L59)))) ->  | H59: =IF(A59="",IF(AND(A59="",A58=""),"",SUM($H$26:H58)),E59+G59) ->  | I59: =IF(A59="","",N59*$D$16*C59/D59) ->  | J59: =IF(A59="","","с "&TEXT(B59+1,"ДД.ММ.ГГГГ")&" по "&TEXT(B60,"ДД.ММ.ГГГГ")) ->  | K59: =IF(A59="","",C59) ->  | L59: =IF(A59="","",P59) ->  | M59: =IF(A59="","",N59-E59) ->  | N59: =IF(A59="","",M58) -> 
C60: =IF(A60="",IF(AND(A60="",A59=""),"",SUM($C$26:C59)),B60-B59) ->  | F60: =IF(A60="",IF(AND(A60="",A59=""),"",SUM($F$26:F59)),IF(P60=0,M60,O60)) ->  | G60: =IF(A60="",IF(AND(A60="",A59=""),"",SUM($G$26:G59)),IF(A60<=$F$19,0,IF(A60="",0,IF(P60=0,I60,L60)))) ->  | H60: =IF(A60="",IF(AND(A60="",A59=""),"",SUM($H$26:H59)),E60+G60) ->  | I60: =IF(A60="","",N60*$D$16*C60/D60) ->  | J60: =IF(A60="","","с "&TEXT(B60+1,"ДД.ММ.ГГГГ")&" по "&TEXT(B61,"ДД.ММ.ГГГГ")) ->  | K60: =IF(A60="","",C60) ->  | L60: =IF(A60="","",P60) ->  | M60: =IF(A60="","",N60-E60) ->  | N60: =IF(A60="","",M59) -> 
C61: =IF(A61="","",B61-B60) ->  | F61: =IF(A61="",IF(AND(A61="",A60=""),"",SUM($F$26:F60)),IF(P61=0,M61,O61)) ->  | G61: =IF(A61="",IF(AND(A61="",A60=""),"",SUM($G$26:G60)),IF(A61<=$F$19,0,IF(A61="",0,IF(P61=0,I61,L61)))) ->  | H61: =IF(A61="",IF(AND(A61="",A60=""),"",SUM($H$26:H60)),E61+G61) ->  | I61: =IF(A61="","",N61*$D$16*C61/D61) ->  | J61: =IF(A61="","","с "&TEXT(B61+1,"ДД.ММ.ГГГГ")&" по "&TEXT(B62,"ДД.ММ.ГГГГ")) ->  | K61: =IF(A61="","",C61) ->  | L61: =IF(A61="","",P61) ->  | M61: =IF(A61="","",N61-E61) ->  | N61: =IF(A61="","",M60) -> 
F62: =IF(A62="",IF(AND(A62="",A61=""),"",SUM($F$26:F61)),IF(P62=0,M62,O62)) ->  | G62: =IF(A62="",IF(AND(A62="",A61=""),"",SUM($G$26:G61)),IF(A62<=$F$19,0,IF(A62="",0,IF(P62=0,I62,L62)))) ->  | H62: =IF(A62="",IF(AND(A62="",A61=""),"",SUM($H$26:H61)),E62+G62) ->  | I62: =IF(A62="","",N62*$D$16*C62/D62) ->  | J62: =IF(A62="","","с "&TEXT(B62+1,"ДД.ММ.ГГГГ")&" по "&TEXT(B63,"ДД.ММ.ГГГГ")) ->  | K62: =IF(A62="","",C62) ->  | L62: =IF(A62="","",P62) ->  | M62: =IF(A62="","",N62-E62) ->  | N62: =IF(A62="","",M61) -> 
F63: =IF(A63="",IF(AND(A63="",A62=""),"",SUM($F$26:F62)),IF(P63=0,M63,O63)) ->  | G63: =IF(A63="",IF(AND(A63="",A62=""),"",SUM($G$26:G62)),IF(A63<=$F$19,0,IF(A63="",0,IF(P63=0,I63,L63)))) ->  | H63: =IF(A63="",IF(AND(A63="",A62=""),"",SUM($H$26:H62)),E63+G63) ->  | I63: =IF(A63="","",N63*$D$16*C63/D63) ->  | J63: =IF(A63="","","с "&TEXT(B63+1,"ДД.ММ.ГГГГ")&" по "&TEXT(B64,"ДД.ММ.ГГГГ")) ->  | K63: =IF(A63="","",C63) ->  | L63: =IF(A63="","",P63) ->  | M63: =IF(A63="","",N63-E63) ->  | N63: =IF(A63="","",M62) -> 
F64: =IF(A64="",IF(AND(A64="",A63=""),"",SUM($F$26:F63)),IF(P64=0,M64,O64)) ->  | G64: =IF(A64="",IF(AND(A64="",A63=""),"",SUM($G$26:G63)),IF(A64<=$F$19,0,IF(A64="",0,IF(P64=0,I64,L64)))) ->  | H64: =IF(A64="",IF(AND(A64="",A63=""),"",SUM($H$26:H63)),E64+G64) ->  | I64: =IF(A64="","",N64*$D$16*C64/D64) ->  | J64: =IF(A64="","","с "&TEXT(B64+1,"ДД.ММ.ГГГГ")&" по "&TEXT(B65,"ДД.ММ.ГГГГ")) ->  | K64: =IF(A64="","",C64) ->  | L64: =IF(A64="","",P64) ->  | M64: =IF(A64="","",N64-E64) ->  | N64: =IF(A64="","",M63) -> 
F65: =IF(A65="",IF(AND(A65="",A64=""),"",SUM($F$26:F64)),IF(P65=0,M65,O65)) ->  | G65: =IF(A65="",IF(AND(A65="",A64=""),"",SUM($G$26:G64)),IF(A65<=$F$19,0,IF(A65="",0,IF(P65=0,I65,L65)))) ->  | H65: =IF(A65="",IF(AND(A65="",A64=""),"",SUM($H$26:H64)),E65+G65) ->  | I65: =IF(A65="","",N65*$D$16*C65/D65) ->  | J65: =IF(A65="","","с "&TEXT(B65+1,"ДД.ММ.ГГГГ")&" по "&TEXT(B66,"ДД.ММ.ГГГГ")) ->  | K65: =IF(A65="","",C65) ->  | L65: =IF(A65="","",P65) ->  | M65: =IF(A65="","",N65-E65) ->  | N65: =IF(A65="","",M64) -> 
F66: =IF(A66="",IF(AND(A66="",A65=""),"",SUM($F$26:F65)),IF(P66=0,M66,O66)) ->  | G66: =IF(A66="",IF(AND(A66="",A65=""),"",SUM($G$26:G65)),IF(A66<=$F$19,0,IF(A66="",0,IF(P66=0,I66,L66)))) ->  | H66: =IF(A66="",IF(AND(A66="",A65=""),"",SUM($H$26:H65)),E66+G66) ->  | I66: =IF(A66="","",N66*$D$16*C66/D66) ->  | J66: =IF(A66="","","с "&TEXT(B66+1,"ДД.ММ.ГГГГ")&" по "&TEXT(B67,"ДД.ММ.ГГГГ")) ->  | K66: =IF(A66="","",C66) ->  | L66: =IF(A66="","",P66) ->  | M66: =IF(A66="","",N66-E66) ->  | N66: =IF(A66="","",M65) -> 
F67: =IF(A67="",IF(AND(A67="",A66=""),"",SUM($F$26:F66)),IF(P67=0,M67,O67)) ->  | G67: =IF(A67="",IF(AND(A67="",A66=""),"",SUM($G$26:G66)),IF(A67<=$F$19,0,IF(A67="",0,IF(P67=0,I67,L67)))) ->  | H67: =IF(A67="",IF(AND(A67="",A66=""),"",SUM($H$26:H66)),E67+G67) ->  | I67: =IF(A67="","",N67*$D$16*C67/D67) ->  | J67: =IF(A67="","","с "&TEXT(B67+1,"ДД.ММ.ГГГГ")&" по "&TEXT(B68,"ДД.ММ.ГГГГ")) ->  | K67: =IF(A67="","",C67) ->  | L67: =IF(A67="","",P67) ->  | M67: =IF(A67="","",N67-E67) ->  | N67: =IF(A67="","",M66) -> 
F68: =IF(A68="",IF(AND(A68="",A67=""),"",SUM($F$26:F67)),IF(P68=0,M68,O68)) ->  | G68: =IF(A68="",IF(AND(A68="",A67=""),"",SUM($G$26:G67)),IF(A68<=$F$19,0,IF(A68="",0,IF(P68=0,I68,L68)))) ->  | H68: =IF(A68="",IF(AND(A68="",A67=""),"",SUM($H$26:H67)),E68+G68) ->  | I68: =IF(A68="","",N68*$D$16*C68/D68) ->  | J68: =IF(A68="","","с "&TEXT(B68+1,"ДД.ММ.ГГГГ")&" по "&TEXT(B69,"ДД.ММ.ГГГГ")) ->  | K68: =IF(A68="","",C68) ->  | L68: =IF(A68="","",P68) ->  | M68: =IF(A68="","",N68-E68) ->  | N68: =IF(A68="","",M67) -> 
F69: =IF(A69="",IF(AND(A69="",A68=""),"",SUM($F$26:F68)),IF(P69=0,M69,O69)) ->  | G69: =IF(A69="",IF(AND(A69="",A68=""),"",SUM($G$26:G68)),IF(A69<=$F$19,0,IF(A69="",0,IF(P69=0,I69,L69)))) ->  | H69: =IF(A69="",IF(AND(A69="",A68=""),"",SUM($H$26:H68)),E69+G69) ->  | I69: =IF(A69="","",N69*$D$16*C69/D69) ->  | J69: =IF(A69="","","с "&TEXT(B69+1,"ДД.ММ.ГГГГ")&" по "&TEXT(B70,"ДД.ММ.ГГГГ")) ->  | K69: =IF(A69="","",C69) ->  | L69: =IF(A69="","",P69) ->  | M69: =IF(A69="","",N69-E69) ->  | N69: =IF(A69="","",M68) -> 
F70: =IF(A70="",IF(AND(A70="",A69=""),"",SUM($F$26:F69)),IF(P70=0,M70,O70)) ->  | G70: =IF(A70="",IF(AND(A70="",A69=""),"",SUM($G$26:G69)),IF(A70<=$F$19,0,IF(A70="",0,IF(P70=0,I70,L70)))) ->  | H70: =IF(A70="",IF(AND(A70="",A69=""),"",SUM($H$26:H69)),E70+G70) ->  | I70: =IF(A70="","",N70*$D$16*C70/D70) ->  | J70: =IF(A70="","","с "&TEXT(B70+1,"ДД.ММ.ГГГГ")&" по "&TEXT(B71,"ДД.ММ.ГГГГ")) ->  | K70: =IF(A70="","",C70) ->  | L70: =IF(A70="","",P70) ->  | M70: =IF(A70="","",N70-E70) ->  | N70: =IF(A70="","",M69) -> 
F71: =IF(A71="",IF(AND(A71="",A70=""),"",SUM($F$26:F70)),IF(P71=0,M71,O71)) ->  | G71: =IF(A71="",IF(AND(A71="",A70=""),"",SUM($G$26:G70)),IF(A71<=$F$19,0,IF(A71="",0,IF(P71=0,I71,L71)))) ->  | H71: =IF(A71="",IF(AND(A71="",A70=""),"",SUM($H$26:H70)),E71+G71) ->  | I71: =IF(A71="","",N71*$D$16*C71/D71) ->  | J71: =IF(A71="","","с "&TEXT(B71+1,"ДД.ММ.ГГГГ")&" по "&TEXT(B72,"ДД.ММ.ГГГГ")) ->  | K71: =IF(A71="","",C71) ->  | L71: =IF(A71="","",P71) ->  | M71: =IF(A71="","",N71-E71) ->  | N71: =IF(A71="","",M70) -> 
F72: =IF(A72="",IF(AND(A72="",A71=""),"",SUM($F$26:F71)),IF(P72=0,M72,O72)) ->  | G72: =IF(A72="",IF(AND(A72="",A71=""),"",SUM($G$26:G71)),IF(A72<=$F$19,0,IF(A72="",0,IF(P72=0,I72,L72)))) ->  | H72: =IF(A72="",IF(AND(A72="",A71=""),"",SUM($H$26:H71)),E72+G72) ->  | I72: =IF(A72="","",N72*$D$16*C72/D72) ->  | J72: =IF(A72="","","с "&TEXT(B72+1,"ДД.ММ.ГГГГ")&" по "&TEXT(B73,"ДД.ММ.ГГГГ")) ->  | K72: =IF(A72="","",C72) ->  | L72: =IF(A72="","",P72) ->  | M72: =IF(A72="","",N72-E72) ->  | N72: =IF(A72="","",M71) -> 
F73: =IF(A73="",IF(AND(A73="",A72=""),"",SUM($F$26:F72)),IF(P73=0,M73,O73)) ->  | G73: =IF(A73="",IF(AND(A73="",A72=""),"",SUM($G$26:G72)),IF(A73<=$F$19,0,IF(A73="",0,IF(P73=0,I73,L73)))) ->  | H73: =IF(A73="",IF(AND(A73="",A72=""),"",SUM($H$26:H72)),E73+G73) ->  | I73: =IF(A73="","",N73*$D$16*C73/D73) ->  | J73: =IF(A73="","","с "&TEXT(B73+1,"ДД.ММ.ГГГГ")&" по "&TEXT(B74,"ДД.ММ.ГГГГ")) ->  | K73: =IF(A73="","",C73) ->  | L73: =IF(A73="","",P73) ->  | M73: =IF(A73="","",N73-E73) ->  | N73: =IF(A73="","",M72) -> 
F74: =IF(A74="",IF(AND(A74="",A73=""),"",SUM($F$26:F73)),IF(P74=0,M74,O74)) ->  | G74: =IF(A74="",IF(AND(A74="",A73=""),"",SUM($G$26:G73)),IF(A74<=$F$19,0,IF(A74="",0,IF(P74=0,I74,L74)))) ->  | H74: =IF(A74="",IF(AND(A74="",A73=""),"",SUM($H$26:H73)),E74+G74) ->  | I74: =IF(A74="","",N74*$D$16*C74/D74) ->  | J74: =IF(A74="","","с "&TEXT(B74+1,"ДД.ММ.ГГГГ")&" по "&TEXT(B75,"ДД.ММ.ГГГГ")) ->  | K74: =IF(A74="","",C74) ->  | L74: =IF(A74="","",P74) ->  | M74: =IF(A74="","",N74-E74) ->  | N74: =IF(A74="","",M73) -> 
F75: =IF(A75="",IF(AND(A75="",A74=""),"",SUM($F$26:F74)),IF(P75=0,M75,O75)) ->  | G75: =IF(A75="",IF(AND(A75="",A74=""),"",SUM($G$26:G74)),IF(A75<=$F$19,0,IF(A75="",0,IF(P75=0,I75,L75)))) ->  | H75: =IF(A75="",IF(AND(A75="",A74=""),"",SUM($H$26:H74)),E75+G75) ->  | I75: =IF(A75="","",N75*$D$16*C75/D75) ->  | J75: =IF(A75="","","с "&TEXT(B75+1,"ДД.ММ.ГГГГ")&" по "&TEXT(B76,"ДД.ММ.ГГГГ")) ->  | K75: =IF(A75="","",C75) ->  | L75: =IF(A75="","",P75) ->  | M75: =IF(A75="","",N75-E75) ->  | N75: =IF(A75="","",M74) -> 
F76: =IF(A76="",IF(AND(A76="",A75=""),"",SUM($F$26:F75)),IF(P76=0,M76,O76)) ->  | G76: =IF(A76="",IF(AND(A76="",A75=""),"",SUM($G$26:G75)),IF(A76<=$F$19,0,IF(A76="",0,IF(P76=0,I76,L76)))) ->  | H76: =IF(A76="",IF(AND(A76="",A75=""),"",SUM($H$26:H75)),E76+G76) ->  | I76: =IF(A76="","",N76*$D$16*C76/D76) ->  | J76: =IF(A76="","","с "&TEXT(B76+1,"ДД.ММ.ГГГГ")&" по "&TEXT(B77,"ДД.ММ.ГГГГ")) ->  | K76: =IF(A76="","",C76) ->  | L76: =IF(A76="","",P76) ->  | M76: =IF(A76="","",N76-E76) ->  | N76: =IF(A76="","",M75) -> 
F77: =IF(A77="",IF(AND(A77="",A76=""),"",SUM($F$26:F76)),IF(P77=0,M77,O77)) ->  | G77: =IF(A77="",IF(AND(A77="",A76=""),"",SUM($G$26:G76)),IF(A77<=$F$19,0,IF(A77="",0,IF(P77=0,I77,L77)))) ->  | H77: =IF(A77="",IF(AND(A77="",A76=""),"",SUM($H$26:H76)),E77+G77) ->  | I77: =IF(A77="","",N77*$D$16*C77/D77) ->  | J77: =IF(A77="","","с "&TEXT(B77+1,"ДД.ММ.ГГГГ")&" по "&TEXT(B78,"ДД.ММ.ГГГГ")) ->  | K77: =IF(A77="","",C77) ->  | L77: =IF(A77="","",P77) ->  | M77: =IF(A77="","",N77-E77) ->  | N77: =IF(A77="","",M76) -> 
F78: =IF(A78="",IF(AND(A78="",A77=""),"",SUM($F$26:F77)),IF(P78=0,M78,O78)) ->  | G78: =IF(A78="",IF(AND(A78="",A77=""),"",SUM($G$26:G77)),IF(A78<=$F$19,0,IF(A78="",0,IF(P78=0,I78,L78)))) ->  | H78: =IF(A78="",IF(AND(A78="",A77=""),"",SUM($H$26:H77)),E78+G78) ->  | I78: =IF(A78="","",N78*$D$16*C78/D78) ->  | J78: =IF(A78="","","с "&TEXT(B78+1,"ДД.ММ.ГГГГ")&" по "&TEXT(B79,"ДД.ММ.ГГГГ")) ->  | K78: =IF(A78="","",C78) ->  | L78: =IF(A78="","",P78) ->  | M78: =IF(A78="","",N78-E78) ->  | N78: =IF(A78="","",M77) -> 
F79: =IF(A79="",IF(AND(A79="",A78=""),"",SUM($F$26:F78)),IF(P79=0,M79,O79)) ->  | G79: =IF(A79="",IF(AND(A79="",A78=""),"",SUM($G$26:G78)),IF(A79<=$F$19,0,IF(A79="",0,IF(P79=0,I79,L79)))) ->  | H79: =IF(A79="",IF(AND(A79="",A78=""),"",SUM($H$26:H78)),E79+G79) ->  | I79: =IF(A79="","",N79*$D$16*C79/D79) ->  | J79: =IF(A79="","","с "&TEXT(B79+1,"ДД.ММ.ГГГГ")&" по "&TEXT(B80,"ДД.ММ.ГГГГ")) ->  | K79: =IF(A79="","",C79) ->  | L79: =IF(A79="","",P79) ->  | M79: =IF(A79="","",N79-E79) ->  | N79: =IF(A79="","",M78) -> 
F80: =IF(A80="",IF(AND(A80="",A79=""),"",SUM($F$26:F79)),IF(P80=0,M80,O80)) ->  | G80: =IF(A80="",IF(AND(A80="",A79=""),"",SUM($G$26:G79)),IF(A80<=$F$19,0,IF(A80="",0,IF(P80=0,I80,L80)))) ->  | H80: =IF(A80="",IF(AND(A80="",A79=""),"",SUM($H$26:H79)),E80+G80) ->  | I80: =IF(A80="","",N80*$D$16*C80/D80) ->  | J80: =IF(A80="","","с "&TEXT(B80+1,"ДД.ММ.ГГГГ")&" по "&TEXT(B81,"ДД.ММ.ГГГГ")) ->  | K80: =IF(A80="","",C80) ->  | L80: =IF(A80="","",P80) ->  | M80: =IF(A80="","",N80-E80) ->  | N80: =IF(A80="","",M79) -> 
F81: =IF(A81="",IF(AND(A81="",A80=""),"",SUM($F$26:F80)),IF(P81=0,M81,O81)) ->  | G81: =IF(A81="",IF(AND(A81="",A80=""),"",SUM($G$26:G80)),IF(A81<=$F$19,0,IF(A81="",0,IF(P81=0,I81,L81)))) ->  | H81: =IF(A81="",IF(AND(A81="",A80=""),"",SUM($H$26:H80)),E81+G81) ->  | I81: =IF(A81="","",N81*$D$16*C81/D81) ->  | J81: =IF(A81="","","с "&TEXT(B81+1,"ДД.ММ.ГГГГ")&" по "&TEXT(B82,"ДД.ММ.ГГГГ")) ->  | K81: =IF(A81="","",C81) ->  | L81: =IF(A81="","",P81) ->  | M81: =IF(A81="","",N81-E81) ->  | N81: =IF(A81="","",M80) -> 
F82: =IF(A82="",IF(AND(A82="",A81=""),"",SUM($F$26:F81)),IF(P82=0,M82,O82)) ->  | G82: =IF(A82="",IF(AND(A82="",A81=""),"",SUM($G$26:G81)),IF(A82<=$F$19,0,IF(A82="",0,IF(P82=0,I82,L82)))) ->  | H82: =IF(A82="",IF(AND(A82="",A81=""),"",SUM($H$26:H81)),E82+G82) ->  | I82: =IF(A82="","",N82*$D$16*C82/D82) ->  | J82: =IF(A82="","","с "&TEXT(B82+1,"ДД.ММ.ГГГГ")&" по "&TEXT(B83,"ДД.ММ.ГГГГ")) ->  | K82: =IF(A82="","",C82) ->  | L82: =IF(A82="","",P82) ->  | M82: =IF(A82="","",N82-E82) ->  | N82: =IF(A82="","",M81) -> 
F83: =IF(A83="",IF(AND(A83="",A82=""),"",SUM($F$26:F82)),IF(P83=0,M83,O83)) ->  | G83: =IF(A83="",IF(AND(A83="",A82=""),"",SUM($G$26:G82)),IF(A83<=$F$19,0,IF(A83="",0,IF(P83=0,I83,L83)))) ->  | H83: =IF(A83="",IF(AND(A83="",A82=""),"",SUM($H$26:H82)),E83+G83) ->  | I83: =IF(A83="","",N83*$D$16*C83/D83) ->  | J83: =IF(A83="","","с "&TEXT(B83+1,"ДД.ММ.ГГГГ")&" по "&TEXT(B84,"ДД.ММ.ГГГГ")) ->  | K83: =IF(A83="","",C83) ->  | L83: =IF(A83="","",P83) ->  | M83: =IF(A83="","",N83-E83) ->  | N83: =IF(A83="","",M82) -> 
F84: =IF(A84="",IF(AND(A84="",A83=""),"",SUM($F$26:F83)),IF(P84=0,M84,O84)) ->  | G84: =IF(A84="",IF(AND(A84="",A83=""),"",SUM($G$26:G83)),IF(A84<=$F$19,0,IF(A84="",0,IF(P84=0,I84,L84)))) ->  | H84: =IF(A84="",IF(AND(A84="",A83=""),"",SUM($H$26:H83)),E84+G84) ->  | I84: =IF(A84="","",N84*$D$16*C84/D84) ->  | J84: =IF(A84="","","с "&TEXT(B84+1,"ДД.ММ.ГГГГ")&" по "&TEXT(B85,"ДД.ММ.ГГГГ")) ->  | K84: =IF(A84="","",C84) ->  | L84: =IF(A84="","",P84) ->  | M84: =IF(A84="","",N84-E84) ->  | N84: =IF(A84="","",M83) -> 
F85: =IF(A85="",IF(AND(A85="",A84=""),"",SUM($F$26:F84)),IF(P85=0,M85,O85)) ->  | G85: =IF(A85="",IF(AND(A85="",A84=""),"",SUM($G$26:G84)),IF(A85<=$F$19,0,IF(A85="",0,IF(P85=0,I85,L85)))) ->  | H85: =IF(A85="",IF(AND(A85="",A84=""),"",SUM($H$26:H84)),E85+G85) ->  | I85: =IF(A85="","",N85*$D$16*C85/D85) ->  | J85: =IF(A85="","","с "&TEXT(B85+1,"ДД.ММ.ГГГГ")&" по "&TEXT(B86,"ДД.ММ.ГГГГ")) ->  | K85: =IF(A85="","",C85) ->  | L85: =IF(A85="","",P85) ->  | M85: =IF(A85="","",N85-E85) ->  | N85: =IF(A85="","",M84) -> 
F86: =IF(A86="",IF(AND(A86="",A85=""),"",SUM($F$26:F85)),IF(P86=0,M86,O86)) ->  | G86: =IF(A86="",IF(AND(A86="",A85=""),"",SUM($G$26:G85)),IF(A86<=$F$19,0,IF(A86="",0,IF(P86=0,I86,L86)))) ->  | H86: =IF(A86="",IF(AND(A86="",A85=""),"",SUM($H$26:H85)),E86+G86) ->  | I86: =IF(A86="","",N86*$D$16*C86/D86) ->  | J86: =IF(A86="","","с "&TEXT(B86+1,"ДД.ММ.ГГГГ")&" по "&TEXT(B87,"ДД.ММ.ГГГГ")) ->  | K86: =IF(A86="","",C86) ->  | L86: =IF(A86="","",P86) ->  | M86: =IF(A86="","",N86-E86) ->  | N86: =IF(A86="","",M85) -> 
F87: =IF(A87="",IF(AND(A87="",A86=""),"",SUM($F$26:F86)),IF(P87=0,M87,O87)) ->  | G87: =IF(A87="",IF(AND(A87="",A86=""),"",SUM($G$26:G86)),IF(A87<=$F$19,0,IF(A87="",0,IF(P87=0,I87,L87)))) ->  | H87: =IF(A87="",IF(AND(A87="",A86=""),"",SUM($H$26:H86)),E87+G87) ->  | I87: =IF(A87="","",N87*$D$16*C87/D87) ->  | J87: =IF(A87="","","с "&TEXT(B87+1,"ДД.ММ.ГГГГ")&" по "&TEXT(B88,"ДД.ММ.ГГГГ")) ->  | K87: =IF(A87="","",C87) ->  | L87: =IF(A87="","",P87) ->  | M87: =IF(A87="","",N87-E87) ->  | N87: =IF(A87="","",M86) -> 
F88: =IF(A88="",IF(AND(A88="",A87=""),"",SUM($F$26:F87)),IF(P88=0,M88,O88)) ->  | G88: =IF(A88="",IF(AND(A88="",A87=""),"",SUM($G$26:G87)),IF(A88<=$F$19,0,IF(A88="",0,IF(P88=0,I88,L88)))) ->  | H88: =IF(A88="",IF(AND(A88="",A87=""),"",SUM($H$26:H87)),E88+G88) ->  | I88: =IF(A88="","",N88*$D$16*C88/D88) ->  | J88: =IF(A88="","","с "&TEXT(B88+1,"ДД.ММ.ГГГГ")&" по "&TEXT(B89,"ДД.ММ.ГГГГ")) ->  | K88: =IF(A88="","",C88) ->  | L88: =IF(A88="","",P88) ->  | M88: =IF(A88="","",N88-E88) ->  | N88: =IF(A88="","",M87) -> 
F89: =IF(A89="",IF(AND(A89="",A88=""),"",SUM($F$26:F88)),IF(P89=0,M89,O89)) ->  | G89: =IF(A89="",IF(AND(A89="",A88=""),"",SUM($G$26:G88)),IF(A89<=$F$19,0,IF(A89="",0,IF(P89=0,I89,L89)))) ->  | H89: =IF(A89="",IF(AND(A89="",A88=""),"",SUM($H$26:H88)),E89+G89) ->  | I89: =IF(A89="","",N89*$D$16*C89/D89) ->  | J89: =IF(A89="","","с "&TEXT(B89+1,"ДД.ММ.ГГГГ")&" по "&TEXT(B90,"ДД.ММ.ГГГГ")) ->  | K89: =IF(A89="","",C89) ->  | L89: =IF(A89="","",P89) ->  | M89: =IF(A89="","",N89-E89) ->  | N89: =IF(A89="","",M88) -> 
F90: =IF(A90="",IF(AND(A90="",A89=""),"",SUM($F$26:F89)),IF(P90=0,M90,O90)) ->  | G90: =IF(A90="",IF(AND(A90="",A89=""),"",SUM($G$26:G89)),IF(A90<=$F$19,0,IF(A90="",0,IF(P90=0,I90,L90)))) ->  | H90: =IF(A90="",IF(AND(A90="",A89=""),"",SUM($H$26:H89)),E90+G90) ->  | I90: =IF(A90="","",N90*$D$16*C90/D90) ->  | J90: =IF(A90="","","с "&TEXT(B90+1,"ДД.ММ.ГГГГ")&" по "&TEXT(B91,"ДД.ММ.ГГГГ")) ->  | K90: =IF(A90="","",C90) ->  | L90: =IF(A90="","",P90) ->  | M90: =IF(A90="","",N90-E90) ->  | N90: =IF(A90="","",M89) -> 
F91: =IF(A91="",IF(AND(A91="",A90=""),"",SUM($F$26:F90)),IF(P91=0,M91,O91)) ->  | G91: =IF(A91="",IF(AND(A91="",A90=""),"",SUM($G$26:G90)),IF(A91<=$F$19,0,IF(A91="",0,IF(P91=0,I91,L91)))) ->  | H91: =IF(A91="",IF(AND(A91="",A90=""),"",SUM($H$26:H90)),E91+G91) ->  | I91: =IF(A91="","",N91*$D$16*C91/D91) ->  | J91: =IF(A91="","","с "&TEXT(B91+1,"ДД.ММ.ГГГГ")&" по "&TEXT(B92,"ДД.ММ.ГГГГ")) ->  | K91: =IF(A91="","",C91) ->  | L91: =IF(A91="","",P91) ->  | M91: =IF(A91="","",N91-E91) ->  | N91: =IF(A91="","",M90) -> 
A92: =IF(A91>=$F$22,"",A91+1) ->  | C92: =IF(A92="","",B92-B91) ->  | D92: =IF(MOD(YEAR(B92),4)=0,366,365) ->  | E92: =IF(A92="","",IF(A92<=$F$20,0,IF(A92="",0,$F$18))) ->  | F92: =IF(A92="",IF(AND(A92="",A91=""),"",SUM($F$26:F91)),IF(P92=0,M92,O92)) ->  | G92: =IF(A92="",IF(AND(A92="",A91=""),"",SUM($G$26:G91)),IF(A92<=$F$19,0,IF(A92="",0,IF(P92=0,I92,L92)))) ->  | H92: =IF(A92="",IF(AND(A92="",A91=""),"",SUM($H$26:H91)),E92+G92) ->  | I92: =IF(A92="","",N92*$D$16*C92/D92) ->  | J92: =IF(A92="","","с "&TEXT(B92+1,"ДД.ММ.ГГГГ")&" по "&TEXT(B93,"ДД.ММ.ГГГГ")) ->  | K92: =IF(A92="","",C92) ->  | L92: =IF(A92="","",P92) ->  | M92: =IF(A92="","",N92-E92) ->  | N92: =IF(A92="","",M91) -> 
F93: =IF(A93="",IF(AND(A93="",A92=""),"",SUM($F$26:F92)),IF(P93=0,M93,O93)) ->  | G93: =IF(A93="",IF(AND(A93="",A92=""),"",SUM($G$26:G92)),IF(A93<=$F$19,0,IF(A93="",0,IF(P93=0,I93,L93)))) ->  | H93: =IF(A93="",IF(AND(A93="",A92=""),"",SUM($H$26:H92)),E93+G93) ->  | I93: =IF(A93="","",N93*$D$16*C93/D93) ->  | L93: =IF(A93="","",P93) ->  | M93: =IF(A93="","",N93-E93) ->  | N93: =IF(A93="","",M92) -> 
F94: =IF(A94="",IF(AND(A94="",A93=""),"",SUM($F$26:F93)),IF(P94=0,M94,O94)) ->  | G94: =IF(A94="",IF(AND(A94="",A93=""),"",SUM($G$26:G93)),IF(A94<=$F$19,0,IF(A94="",0,IF(P94=0,I94,L94)))) ->  | H94: =IF(A94="",IF(AND(A94="",A93=""),"",SUM($H$26:H93)),E94+G94) ->  | I94: =IF(A94="","",N94*$D$16*C94/D94) ->  | L94: =IF(A94="","",P94) ->  | M94: =IF(A94="","",N94-E94) ->  | N94: =IF(A94="","",M93) -> 
F95: =IF(A95="",IF(AND(A95="",A94=""),"",SUM($F$26:F94)),IF(P95=0,M95,O95)) ->  | G95: =IF(A95="",IF(AND(A95="",A94=""),"",SUM($G$26:G94)),IF(A95<=$F$19,0,IF(A95="",0,IF(P95=0,I95,L95)))) ->  | H95: =IF(A95="",IF(AND(A95="",A94=""),"",SUM($H$26:H94)),E95+G95) ->  | I95: =IF(A95="","",N95*$D$16*C95/D95) ->  | L95: =IF(A95="","",P95) ->  | M95: =IF(A95="","",N95-E95) ->  | N95: =IF(A95="","",M94) -> 
F96: =IF(A96="",IF(AND(A96="",A95=""),"",SUM($F$26:F95)),IF(P96=0,M96,O96)) ->  | G96: =IF(A96="",IF(AND(A96="",A95=""),"",SUM($G$26:G95)),IF(A96<=$F$19,0,IF(A96="",0,IF(P96=0,I96,L96)))) ->  | H96: =IF(A96="",IF(AND(A96="",A95=""),"",SUM($H$26:H95)),E96+G96) ->  | I96: =IF(A96="","",N96*$D$16*C96/D96) ->  | L96: =IF(A96="","",P96) ->  | M96: =IF(A96="","",N96-E96) ->  | N96: =IF(A96="","",M95) -> 
F97: =IF(A97="",IF(AND(A97="",A96=""),"",SUM($F$26:F96)),IF(P97=0,M97,O97)) ->  | G97: =IF(A97="",IF(AND(A97="",A96=""),"",SUM($G$26:G96)),IF(A97<=$F$19,0,IF(A97="",0,IF(P97=0,I97,L97)))) ->  | H97: =IF(A97="",IF(AND(A97="",A96=""),"",SUM($H$26:H96)),E97+G97) ->  | I97: =IF(A97="","",N97*$D$16*C97/D97) ->  | L97: =IF(A97="","",P97) ->  | M97: =IF(A97="","",N97-E97) ->  | N97: =IF(A97="","",M96) -> 
F98: =IF(A98="",IF(AND(A98="",A97=""),"",SUM($F$26:F97)),IF(P98=0,M98,O98)) ->  | G98: =IF(A98="",IF(AND(A98="",A97=""),"",SUM($G$26:G97)),IF(A98<=$F$19,0,IF(A98="",0,IF(P98=0,I98,L98)))) ->  | H98: =IF(A98="",IF(AND(A98="",A97=""),"",SUM($H$26:H97)),E98+G98) ->  | I98: =IF(A98="","",N98*$D$16*C98/D98) ->  | L98: =IF(A98="","",P98) ->  | M98: =IF(A98="","",N98-E98) ->  | N98: =IF(A98="","",M97) -> 
F99: =IF(A99="",IF(AND(A99="",A98=""),"",SUM($F$26:F98)),IF(P99=0,M99,O99)) ->  | G99: =IF(A99="",IF(AND(A99="",A98=""),"",SUM($G$26:G98)),IF(A99<=$F$19,0,IF(A99="",0,IF(P99=0,I99,L99)))) ->  | H99: =IF(A99="",IF(AND(A99="",A98=""),"",SUM($H$26:H98)),E99+G99) ->  | I99: =IF(A99="","",N99*$D$16*C99/D99) ->  | L99: =IF(A99="","",P99) ->  | M99: =IF(A99="","",N99-E99) ->  | N99: =IF(A99="","",M98) -> 
F100: =IF(A100="",IF(AND(A100="",A99=""),"",SUM($F$26:F99)),IF(P100=0,M100,O100)) ->  | G100: =IF(A100="",IF(AND(A100="",A99=""),"",SUM($G$26:G99)),IF(A100<=$F$19,0,IF(A100="",0,IF(P100=0,I100,L100)))) ->  | H100: =IF(A100="",IF(AND(A100="",A99=""),"",SUM($H$26:H99)),E100+G100) ->  | I100: =IF(A100="","",N100*$D$16*C100/D100) ->  | L100: =IF(A100="","",P100) ->  | M100: =IF(A100="","",N100-E100) ->  | N100: =IF(A100="","",M99) -> 
F101: =IF(A101="",IF(AND(A101="",A100=""),"",SUM($F$26:F100)),IF(P101=0,M101,O101)) ->  | G101: =IF(A101="",IF(AND(A101="",A100=""),"",SUM($G$26:G100)),IF(A101<=$F$19,0,IF(A101="",0,IF(P101=0,I101,L101)))) ->  | H101: =IF(A101="",IF(AND(A101="",A100=""),"",SUM($H$26:H100)),E101+G101) ->  | I101: =IF(A101="","",N101*$D$16*C101/D101) ->  | L101: =IF(A101="","",P101) ->  | M101: =IF(A101="","",N101-E101) ->  | N101: =IF(A101="","",M100) -> 
F102: =IF(A102="",IF(AND(A102="",A101=""),"",SUM($F$26:F101)),IF(P102=0,M102,O102)) ->  | G102: =IF(A102="",IF(AND(A102="",A101=""),"",SUM($G$26:G101)),IF(A102<=$F$19,0,IF(A102="",0,IF(P102=0,I102,L102)))) ->  | H102: =IF(A102="",IF(AND(A102="",A101=""),"",SUM($H$26:H101)),E102+G102) ->  | I102: =IF(A102="","",N102*$D$16*C102/D102) ->  | L102: =IF(A102="","",P102) ->  | M102: =IF(A102="","",N102-E102) ->  | N102: =IF(A102="","",M101) -> 
F103: =IF(A103="",IF(AND(A103="",A102=""),"",SUM($F$26:F102)),IF(P103=0,M103,O103)) ->  | G103: =IF(A103="",IF(AND(A103="",A102=""),"",SUM($G$26:G102)),IF(A103<=$F$19,0,IF(A103="",0,IF(P103=0,I103,L103)))) ->  | H103: =IF(A103="",IF(AND(A103="",A102=""),"",SUM($H$26:H102)),E103+G103) ->  | I103: =IF(A103="","",N103*$D$16*C103/D103) ->  | L103: =IF(A103="","",P103) ->  | M103: =IF(A103="","",N103-E103) ->  | N103: =IF(A103="","",M102) -> 
F104: =IF(A104="",IF(AND(A104="",A103=""),"",SUM($F$26:F103)),IF(P104=0,M104,O104)) ->  | G104: =IF(A104="",IF(AND(A104="",A103=""),"",SUM($G$26:G103)),IF(A104<=$F$19,0,IF(A104="",0,IF(P104=0,I104,L104)))) ->  | H104: =IF(A104="",IF(AND(A104="",A103=""),"",SUM($H$26:H103)),E104+G104) ->  | I104: =IF(A104="","",N104*$D$16*C104/D104) ->  | L104: =IF(A104="","",P104) ->  | M104: =IF(A104="","",N104-E104) ->  | N104: =IF(A104="","",M103) -> 
F105: =IF(A105="",IF(AND(A105="",A104=""),"",SUM($F$26:F104)),IF(P105=0,M105,O105)) ->  | G105: =IF(A105="",IF(AND(A105="",A104=""),"",SUM($G$26:G104)),IF(A105<=$F$19,0,IF(A105="",0,IF(P105=0,I105,L105)))) ->  | H105: =IF(A105="",IF(AND(A105="",A104=""),"",SUM($H$26:H104)),E105+G105) ->  | I105: =IF(A105="","",N105*$D$16*C105/D105) ->  | L105: =IF(A105="","",P105) ->  | M105: =IF(A105="","",N105-E105) ->  | N105: =IF(A105="","",M104) -> 
B106: =IF(A106="",IF(AND(A106="",A105=""),"","ИТОГО:"),DATE(YEAR(B105),MONTH(B105)+1,DAY(B105))) ->  | F106: =IF(A106="",IF(AND(A106="",A105=""),"",SUM($F$26:F105)),IF(P106=0,M106,O106)) ->  | G106: =IF(A106="",IF(AND(A106="",A105=""),"",SUM($G$26:G105)),IF(A106<=$F$19,0,IF(A106="",0,IF(P106=0,I106,L106)))) ->  | H106: =IF(A106="",IF(AND(A106="",A105=""),"",SUM($H$26:H105)),E106+G106) ->  | I106: =IF(A106="","",N106*$D$16*C106/D106) ->  | L106: =IF(A106="","",P106) ->  | M106: =IF(A106="","",N106-E106) ->  | N106: =IF(A106="","",M105) -> 
F107: =IF(A107="",IF(AND(A107="",A106=""),"",SUM($F$26:F106)),IF(P107=0,M107,O107)) ->  | G107: =IF(A107="",IF(AND(A107="",A106=""),"",SUM($G$26:G106)),IF(A107<=$F$19,0,IF(A107="",0,IF(P107=0,I107,L107)))) ->  | H107: =IF(A107="",IF(AND(A107="",A106=""),"",SUM($H$26:H106)),E107+G107) ->  | I107: =IF(A107="","",N107*$D$16*C107/D107) ->  | L107: =IF(A107="","",P107) ->  | M107: =IF(A107="","",N107-E107) ->  | N107: =IF(A107="","",M106) -> 
F108: =IF(A108="",IF(AND(A108="",A107=""),"",SUM($F$26:F107)),IF(P108=0,M108,O108)) ->  | G108: =IF(A108="",IF(AND(A108="",A107=""),"",SUM($G$26:G107)),IF(A108<=$F$19,0,IF(A108="",0,IF(P108=0,I108,L108)))) ->  | H108: =IF(A108="",IF(AND(A108="",A107=""),"",SUM($H$26:H107)),E108+G108) ->  | I108: =IF(A108="","",N108*$D$16*C108/D108) ->  | L108: =IF(A108="","",P108) ->  | M108: =IF(A108="","",N108-E108) ->  | N108: =IF(A108="","",M107) -> 
F109: =IF(A109="",IF(AND(A109="",A108=""),"",SUM($F$26:F108)),IF(P109=0,M109,O109)) ->  | G109: =IF(A109="",IF(AND(A109="",A108=""),"",SUM($G$26:G108)),IF(A109<=$F$19,0,IF(A109="",0,IF(P109=0,I109,L109)))) ->  | H109: =IF(A109="",IF(AND(A109="",A108=""),"",SUM($H$26:H108)),E109+G109) ->  | I109: =IF(A109="","",N109*$D$16*C109/D109) ->  | L109: =IF(A109="","",P109) ->  | M109: =IF(A109="","",N109-E109) ->  | N109: =IF(A109="","",M108) -> 
F110: =IF(A110="",IF(AND(A110="",A109=""),"",SUM($F$26:F109)),IF(P110=0,M110,O110)) ->  | G110: =IF(A110="",IF(AND(A110="",A109=""),"",SUM($G$26:G109)),IF(A110<=$F$19,0,IF(A110="",0,IF(P110=0,I110,L110)))) ->  | H110: =IF(A110="",IF(AND(A110="",A109=""),"",SUM($H$26:H109)),E110+G110) ->  | I110: =IF(A110="","",N110*$D$16*C110/D110) ->  | J110: =IF(A110="","","с "&TEXT(B110+1,"ДД.ММ.ГГГГ")&" по "&TEXT(B111,"ДД.ММ.ГГГГ")) ->  | L110: =IF(A110="","",P110) ->  | M110: =IF(A110="","",N110-E110) ->  | N110: =IF(A110="","",M109) -> 
A111: =IF(A110>=$F$22,"",A110+1) ->  | C111: =IF(A111="","",B111-B110) ->  | F111: =IF(A111="",IF(AND(A111="",A110=""),"",SUM($F$26:F110)),IF(P111=0,M111,O111)) ->  | G111: =IF(A111="",IF(AND(A111="",A110=""),"",SUM($G$26:G110)),IF(A111<=$F$19,0,IF(A111="",0,IF(P111=0,I111,L111)))) ->  | H111: =IF(A111="",IF(AND(A111="",A110=""),"",SUM($H$26:H110)),E111+G111) ->  | I111: =IF(A111="","",N111*$D$16*C111/D111) ->  | J111: =IF(A111="","","с "&TEXT(B111+1,"ДД.ММ.ГГГГ")&" по "&TEXT(B112,"ДД.ММ.ГГГГ")) ->  | L111: =IF(A111="","",P111) ->  | M111: =IF(A111="","",N111-E111) ->  | N111: =IF(A111="","",M110) -> 
A112: =IF(A111>=$F$22,"",A111+1) ->  | C112: =IF(A112="","",B112-B111) ->  | F112: =IF(A112="",IF(AND(A112="",A111=""),"",SUM($F$26:F111)),IF(P112=0,M112,O112)) ->  | G112: =IF(A112="",IF(AND(A112="",A111=""),"",SUM($G$26:G111)),IF(A112<=$F$19,0,IF(A112="",0,IF(P112=0,I112,L112)))) ->  | H112: =IF(A112="",IF(AND(A112="",A111=""),"",SUM($H$26:H111)),E112+G112) ->  | I112: =IF(A112="","",N112*$D$16*C112/D112) ->  | L112: =IF(A112="","",P112) ->  | M112: =IF(A112="","",N112-E112) ->  | N112: =IF(A112="","",M111) -> 
F113: =IF(A113="",IF(AND(A113="",A112=""),"",SUM($F$26:F112)),IF(P113=0,M113,O113)) ->  | G113: =IF(A113="",IF(AND(A113="",A112=""),"",SUM($G$26:G112)),IF(A113<=$F$19,0,IF(A113="",0,IF(P113=0,I113,L113)))) ->  | H113: =IF(A113="",IF(AND(A113="",A112=""),"",SUM($H$26:H112)),E113+G113) ->  | I113: =IF(A113="","",N113*$D$16*C113/D113) ->  | L113: =IF(A113="","",P113) ->  | M113: =IF(A113="","",N113-E113) ->  | N113: =IF(A113="","",M112) -> 
F114: =IF(A114="",IF(AND(A114="",A113=""),"",SUM($F$26:F113)),IF(P114=0,M114,O114)) ->  | G114: =IF(A114="",IF(AND(A114="",A113=""),"",SUM($G$26:G113)),IF(A114<=$F$19,0,IF(A114="",0,IF(P114=0,I114,L114)))) ->  | H114: =IF(A114="",IF(AND(A114="",A113=""),"",SUM($H$26:H113)),E114+G114) ->  | I114: =IF(A114="","",N114*$D$16*C114/D114) ->  | L114: =IF(A114="","",P114) ->  | M114: =IF(A114="","",N114-E114) ->  | N114: =IF(A114="","",M113) -> 
F115: =IF(A115="",IF(AND(A115="",A114=""),"",SUM($F$26:F114)),IF(P115=0,M115,O115)) ->  | G115: =IF(A115="",IF(AND(A115="",A114=""),"",SUM($G$26:G114)),IF(A115<=$F$19,0,IF(A115="",0,IF(P115=0,I115,L115)))) ->  | H115: =IF(A115="",IF(AND(A115="",A114=""),"",SUM($H$26:H114)),E115+G115) ->  | I115: =IF(A115="","",N115*$D$16*C115/D115) ->  | L115: =IF(A115="","",P115) ->  | M115: =IF(A115="","",N115-E115) ->  | N115: =IF(A115="","",M114) -> 
F116: =IF(A116="",IF(AND(A116="",A115=""),"",SUM($F$26:F115)),IF(P116=0,M116,O116)) ->  | G116: =IF(A116="",IF(AND(A116="",A115=""),"",SUM($G$26:G115)),IF(A116<=$F$19,0,IF(A116="",0,IF(P116=0,I116,L116)))) ->  | H116: =IF(A116="",IF(AND(A116="",A115=""),"",SUM($H$26:H115)),E116+G116) ->  | I116: =IF(A116="","",N116*$D$16*C116/D116) ->  | L116: =IF(A116="","",P116) ->  | M116: =IF(A116="","",N116-E116) ->  | N116: =IF(A116="","",M115) -> 
F117: =IF(A117="",IF(AND(A117="",A116=""),"",SUM($F$26:F116)),IF(P117=0,M117,O117)) ->  | G117: =IF(A117="",IF(AND(A117="",A116=""),"",SUM($G$26:G116)),IF(A117<=$F$19,0,IF(A117="",0,IF(P117=0,I117,L117)))) ->  | H117: =IF(A117="",IF(AND(A117="",A116=""),"",SUM($H$26:H116)),E117+G117) ->  | I117: =IF(A117="","",N117*$D$16*C117/D117) ->  | L117: =IF(A117="","",P117) ->  | M117: =IF(A117="","",N117-E117) ->  | N117: =IF(A117="","",M116) -> 
C118: =IF(A118="","",B118-B117) ->  | F118: =IF(A118="",IF(AND(A118="",A117=""),"",SUM($F$26:F117)),IF(P118=0,M118,O118)) ->  | G118: =IF(A118="",IF(AND(A118="",A117=""),"",SUM($G$26:G117)),IF(A118<=$F$19,0,IF(A118="",0,IF(P118=0,I118,L118)))) ->  | H118: =IF(A118="",IF(AND(A118="",A117=""),"",SUM($H$26:H117)),E118+G118) ->  | I118: =IF(A118="","",N118*$D$16*C118/D118) ->  | L118: =IF(A118="","",P118) ->  | M118: =IF(A118="","",N118-E118) ->  | N118: =IF(A118="","",M117) -> 
F119: =IF(A119="",IF(AND(A119="",A118=""),"",SUM($F$26:F118)),IF(P119=0,M119,O119)) ->  | G119: =IF(A119="",IF(AND(A119="",A118=""),"",SUM($G$26:G118)),IF(A119<=$F$19,0,IF(A119="",0,IF(P119=0,I119,L119)))) ->  | H119: =IF(A119="",IF(AND(A119="",A118=""),"",SUM($H$26:H118)),E119+G119) ->  | I119: =IF(A119="","",N119*$D$16*C119/D119) ->  | L119: =IF(A119="","",P119) ->  | M119: =IF(A119="","",N119-E119) ->  | N119: =IF(A119="","",M118) -> 
F120: =IF(A120="",IF(AND(A120="",A119=""),"",SUM($F$26:F119)),IF(P120=0,M120,O120)) ->  | G120: =IF(A120="",IF(AND(A120="",A119=""),"",SUM($G$26:G119)),IF(A120<=$F$19,0,IF(A120="",0,IF(P120=0,I120,L120)))) ->  | H120: =IF(A120="",IF(AND(A120="",A119=""),"",SUM($H$26:H119)),E120+G120) ->  | I120: =IF(A120="","",N120*$D$16*C120/D120) ->  | L120: =IF(A120="","",P120) ->  | M120: =IF(A120="","",N120-E120) ->  | N120: =IF(A120="","",M119) -> 
F121: =IF(A121="",IF(AND(A121="",A120=""),"",SUM($F$26:F120)),IF(P121=0,M121,O121)) ->  | G121: =IF(A121="",IF(AND(A121="",A120=""),"",SUM($G$26:G120)),IF(A121<=$F$19,0,IF(A121="",0,IF(P121=0,I121,L121)))) ->  | H121: =IF(A121="",IF(AND(A121="",A120=""),"",SUM($H$26:H120)),E121+G121) ->  | I121: =IF(A121="","",N121*$D$16*C121/D121) ->  | L121: =IF(A121="","",P121) ->  | M121: =IF(A121="","",N121-E121) ->  | N121: =IF(A121="","",M120) -> 
F122: =IF(A122="",IF(AND(A122="",A121=""),"",SUM($F$26:F121)),IF(P122=0,M122,O122)) ->  | G122: =IF(A122="",IF(AND(A122="",A121=""),"",SUM($G$26:G121)),IF(A122<=$F$19,0,IF(A122="",0,IF(P122=0,I122,L122)))) ->  | H122: =IF(A122="",IF(AND(A122="",A121=""),"",SUM($H$26:H121)),E122+G122) ->  | I122: =IF(A122="","",N122*$D$16*C122/D122) ->  | L122: =IF(A122="","",P122) ->  | M122: =IF(A122="","",N122-E122) ->  | N122: =IF(A122="","",M121) -> 
F123: =IF(A123="",IF(AND(A123="",A122=""),"",SUM($F$26:F122)),IF(P123=0,M123,O123)) ->  | G123: =IF(A123="",IF(AND(A123="",A122=""),"",SUM($G$26:G122)),IF(A123<=$F$19,0,IF(A123="",0,IF(P123=0,I123,L123)))) ->  | H123: =IF(A123="",IF(AND(A123="",A122=""),"",SUM($H$26:H122)),E123+G123) ->  | I123: =IF(A123="","",N123*$D$16*C123/D123) ->  | L123: =IF(A123="","",P123) ->  | M123: =IF(A123="","",N123-E123) ->  | N123: =IF(A123="","",M122) -> 
F124: =IF(A124="",IF(AND(A124="",A123=""),"",SUM($F$26:F123)),IF(P124=0,M124,O124)) ->  | G124: =IF(A124="",IF(AND(A124="",A123=""),"",SUM($G$26:G123)),IF(A124<=$F$19,0,IF(A124="",0,IF(P124=0,I124,L124)))) ->  | H124: =IF(A124="",IF(AND(A124="",A123=""),"",SUM($H$26:H123)),E124+G124) ->  | I124: =IF(A124="","",N124*$D$16*C124/D124) ->  | L124: =IF(A124="","",P124) ->  | M124: =IF(A124="","",N124-E124) ->  | N124: =IF(A124="","",M123) -> 
F125: =IF(A125="",IF(AND(A125="",A124=""),"",SUM($F$26:F124)),IF(P125=0,M125,O125)) ->  | G125: =IF(A125="",IF(AND(A125="",A124=""),"",SUM($G$26:G124)),IF(A125<=$F$19,0,IF(A125="",0,IF(P125=0,I125,L125)))) ->  | H125: =IF(A125="",IF(AND(A125="",A124=""),"",SUM($H$26:H124)),E125+G125) ->  | I125: =IF(A125="","",N125*$D$16*C125/D125) ->  | L125: =IF(A125="","",P125) ->  | M125: =IF(A125="","",N125-E125) ->  | N125: =IF(A125="","",M124) -> 
F126: =IF(A126="",IF(AND(A126="",A125=""),"",SUM($F$26:F125)),IF(P126=0,M126,O126)) ->  | G126: =IF(A126="",IF(AND(A126="",A125=""),"",SUM($G$26:G125)),IF(A126<=$F$19,0,IF(A126="",0,IF(P126=0,I126,L126)))) ->  | H126: =IF(A126="",IF(AND(A126="",A125=""),"",SUM($H$26:H125)),E126+G126) ->  | I126: =IF(A126="","",N126*$D$16*C126/D126) ->  | L126: =IF(A126="","",P126) ->  | M126: =IF(A126="","",N126-E126) ->  | N126: =IF(A126="","",M125) -> 
F127: =IF(A127="",IF(AND(A127="",A126=""),"",SUM($F$26:F126)),IF(P127=0,M127,O127)) ->  | G127: =IF(A127="",IF(AND(A127="",A126=""),"",SUM($G$26:G126)),IF(A127<=$F$19,0,IF(A127="",0,IF(P127=0,I127,L127)))) ->  | H127: =IF(A127="",IF(AND(A127="",A126=""),"",SUM($H$26:H126)),E127+G127) ->  | I127: =IF(A127="","",N127*$D$16*C127/D127) ->  | L127: =IF(A127="","",P127) ->  | M127: =IF(A127="","",N127-E127) ->  | N127: =IF(A127="","",M126) -> 
F128: =IF(A128="",IF(AND(A128="",A127=""),"",SUM($F$26:F127)),IF(P128=0,M128,O128)) ->  | G128: =IF(A128="",IF(AND(A128="",A127=""),"",SUM($G$26:G127)),IF(A128<=$F$19,0,IF(A128="",0,IF(P128=0,I128,L128)))) ->  | H128: =IF(A128="",IF(AND(A128="",A127=""),"",SUM($H$26:H127)),E128+G128) ->  | I128: =IF(A128="","",N128*$D$16*C128/D128) ->  | L128: =IF(A128="","",P128) ->  | M128: =IF(A128="","",N128-E128) ->  | N128: =IF(A128="","",M127) -> 
F129: =IF(A129="",IF(AND(A129="",A128=""),"",SUM($F$26:F128)),IF(P129=0,M129,O129)) ->  | G129: =IF(A129="",IF(AND(A129="",A128=""),"",SUM($G$26:G128)),IF(A129<=$F$19,0,IF(A129="",0,IF(P129=0,I129,L129)))) ->  | H129: =IF(A129="",IF(AND(A129="",A128=""),"",SUM($H$26:H128)),E129+G129) ->  | I129: =IF(A129="","",N129*$D$16*C129/D129) ->  | L129: =IF(A129="","",P129) ->  | M129: =IF(A129="","",N129-E129) ->  | N129: =IF(A129="","",M128) -> 
F130: =IF(A130="",IF(AND(A130="",A129=""),"",SUM($F$26:F129)),IF(P130=0,M130,O130)) ->  | G130: =IF(A130="",IF(AND(A130="",A129=""),"",SUM($G$26:G129)),IF(A130<=$F$19,0,IF(A130="",0,IF(P130=0,I130,L130)))) ->  | H130: =IF(A130="",IF(AND(A130="",A129=""),"",SUM($H$26:H129)),E130+G130) ->  | I130: =IF(A130="","",N130*$D$16*C130/D130) ->  | L130: =IF(A130="","",P130) ->  | M130: =IF(A130="","",N130-E130) ->  | N130: =IF(A130="","",M129) -> 
F131: =IF(A131="",IF(AND(A131="",A130=""),"",SUM($F$26:F130)),IF(P131=0,M131,O131)) ->  | G131: =IF(A131="",IF(AND(A131="",A130=""),"",SUM($G$26:G130)),IF(A131<=$F$19,0,IF(A131="",0,IF(P131=0,I131,L131)))) ->  | H131: =IF(A131="",IF(AND(A131="",A130=""),"",SUM($H$26:H130)),E131+G131) ->  | I131: =IF(A131="","",N131*$D$16*C131/D131) ->  | L131: =IF(A131="","",P131) ->  | M131: =IF(A131="","",N131-E131) ->  | N131: =IF(A131="","",M130) -> 
F132: =IF(A132="",IF(AND(A132="",A131=""),"",SUM($F$26:F131)),IF(P132=0,M132,O132)) ->  | G132: =IF(A132="",IF(AND(A132="",A131=""),"",SUM($G$26:G131)),IF(A132<=$F$19,0,IF(A132="",0,IF(P132=0,I132,L132)))) ->  | H132: =IF(A132="",IF(AND(A132="",A131=""),"",SUM($H$26:H131)),E132+G132) ->  | I132: =IF(A132="","",N132*$D$16*C132/D132) ->  | L132: =IF(A132="","",P132) ->  | M132: =IF(A132="","",N132-E132) ->  | N132: =IF(A132="","",M131) -> 
F133: =IF(A133="",IF(AND(A133="",A132=""),"",SUM($F$26:F132)),IF(P133=0,M133,O133)) ->  | G133: =IF(A133="",IF(AND(A133="",A132=""),"",SUM($G$26:G132)),IF(A133<=$F$19,0,IF(A133="",0,IF(P133=0,I133,L133)))) ->  | H133: =IF(A133="",IF(AND(A133="",A132=""),"",SUM($H$26:H132)),E133+G133) ->  | I133: =IF(A133="","",N133*$D$16*C133/D133) ->  | L133: =IF(A133="","",P133) ->  | M133: =IF(A133="","",N133-E133) ->  | N133: =IF(A133="","",M132) -> 
F134: =IF(A134="",IF(AND(A134="",A133=""),"",SUM($F$26:F133)),IF(P134=0,M134,O134)) ->  | G134: =IF(A134="",IF(AND(A134="",A133=""),"",SUM($G$26:G133)),IF(A134<=$F$19,0,IF(A134="",0,IF(P134=0,I134,L134)))) ->  | H134: =IF(A134="",IF(AND(A134="",A133=""),"",SUM($H$26:H133)),E134+G134) ->  | I134: =IF(A134="","",N134*$D$16*C134/D134) ->  | L134: =IF(A134="","",P134) ->  | M134: =IF(A134="","",N134-E134) ->  | N134: =IF(A134="","",M133) -> 
F135: =IF(A135="",IF(AND(A135="",A134=""),"",SUM($F$26:F134)),IF(P135=0,M135,O135)) ->  | G135: =IF(A135="",IF(AND(A135="",A134=""),"",SUM($G$26:G134)),IF(A135<=$F$19,0,IF(A135="",0,IF(P135=0,I135,L135)))) ->  | H135: =IF(A135="",IF(AND(A135="",A134=""),"",SUM($H$26:H134)),E135+G135) ->  | I135: =IF(A135="","",N135*$D$16*C135/D135) ->  | L135: =IF(A135="","",P135) ->  | M135: =IF(A135="","",N135-E135) ->  | N135: =IF(A135="","",M134) -> 
F136: =IF(A136="",IF(AND(A136="",A135=""),"",SUM($F$26:F135)),IF(P136=0,M136,O136)) ->  | G136: =IF(A136="",IF(AND(A136="",A135=""),"",SUM($G$26:G135)),IF(A136<=$F$19,0,IF(A136="",0,IF(P136=0,I136,L136)))) ->  | H136: =IF(A136="",IF(AND(A136="",A135=""),"",SUM($H$26:H135)),E136+G136) ->  | I136: =IF(A136="","",N136*$D$16*C136/D136) ->  | L136: =IF(A136="","",P136) ->  | M136: =IF(A136="","",N136-E136) ->  | N136: =IF(A136="","",M135) -> 
F137: =IF(A137="",IF(AND(A137="",A136=""),"",SUM($F$26:F136)),IF(P137=0,M137,O137)) ->  | G137: =IF(A137="",IF(AND(A137="",A136=""),"",SUM($G$26:G136)),IF(A137<=$F$19,0,IF(A137="",0,IF(P137=0,I137,L137)))) ->  | H137: =IF(A137="",IF(AND(A137="",A136=""),"",SUM($H$26:H136)),E137+G137) ->  | I137: =IF(A137="","",N137*$D$16*C137/D137) ->  | L137: =IF(A137="","",P137) ->  | M137: =IF(A137="","",N137-E137) ->  | N137: =IF(A137="","",M136) -> 
F138: =IF(A138="",IF(AND(A138="",A137=""),"",SUM($F$26:F137)),IF(P138=0,M138,O138)) ->  | G138: =IF(A138="",IF(AND(A138="",A137=""),"",SUM($G$26:G137)),IF(A138<=$F$19,0,IF(A138="",0,IF(P138=0,I138,L138)))) ->  | H138: =IF(A138="",IF(AND(A138="",A137=""),"",SUM($H$26:H137)),E138+G138) ->  | I138: =IF(A138="","",N138*$D$16*C138/D138) ->  | L138: =IF(A138="","",P138) ->  | M138: =IF(A138="","",N138-E138) ->  | N138: =IF(A138="","",M137) -> 
F139: =IF(A139="",IF(AND(A139="",A138=""),"",SUM($F$26:F138)),IF(P139=0,M139,O139)) ->  | G139: =IF(A139="",IF(AND(A139="",A138=""),"",SUM($G$26:G138)),IF(A139<=$F$19,0,IF(A139="",0,IF(P139=0,I139,L139)))) ->  | H139: =IF(A139="",IF(AND(A139="",A138=""),"",SUM($H$26:H138)),E139+G139) ->  | I139: =IF(A139="","",N139*$D$16*C139/D139) ->  | L139: =IF(A139="","",P139) ->  | M139: =IF(A139="","",N139-E139) ->  | N139: =IF(A139="","",M138) -> 
F140: =IF(A140="",IF(AND(A140="",A139=""),"",SUM($F$26:F139)),IF(P140=0,M140,O140)) ->  | G140: =IF(A140="",IF(AND(A140="",A139=""),"",SUM($G$26:G139)),IF(A140<=$F$19,0,IF(A140="",0,IF(P140=0,I140,L140)))) ->  | H140: =IF(A140="",IF(AND(A140="",A139=""),"",SUM($H$26:H139)),E140+G140) ->  | I140: =IF(A140="","",N140*$D$16*C140/D140) ->  | L140: =IF(A140="","",P140) ->  | M140: =IF(A140="","",N140-E140) ->  | N140: =IF(A140="","",M139) -> 
F141: =IF(A141="",IF(AND(A141="",A140=""),"",SUM($F$26:F140)),IF(P141=0,M141,O141)) ->  | G141: =IF(A141="",IF(AND(A141="",A140=""),"",SUM($G$26:G140)),IF(A141<=$F$19,0,IF(A141="",0,IF(P141=0,I141,L141)))) ->  | H141: =IF(A141="",IF(AND(A141="",A140=""),"",SUM($H$26:H140)),E141+G141) ->  | I141: =IF(A141="","",N141*$D$16*C141/D141) ->  | L141: =IF(A141="","",P141) ->  | M141: =IF(A141="","",N141-E141) ->  | N141: =IF(A141="","",M140) -> 
F142: =IF(A142="",IF(AND(A142="",A141=""),"",SUM($F$26:F141)),IF(P142=0,M142,O142)) ->  | G142: =IF(A142="",IF(AND(A142="",A141=""),"",SUM($G$26:G141)),IF(A142<=$F$19,0,IF(A142="",0,IF(P142=0,I142,L142)))) ->  | H142: =IF(A142="",IF(AND(A142="",A141=""),"",SUM($H$26:H141)),E142+G142) ->  | I142: =IF(A142="","",N142*$D$16*C142/D142) ->  | L142: =IF(A142="","",P142) ->  | M142: =IF(A142="","",N142-E142) ->  | N142: =IF(A142="","",M141) -> 
F143: =IF(A143="",IF(AND(A143="",A142=""),"",SUM($F$26:F142)),IF(P143=0,M143,O143)) ->  | G143: =IF(A143="",IF(AND(A143="",A142=""),"",SUM($G$26:G142)),IF(A143<=$F$19,0,IF(A143="",0,IF(P143=0,I143,L143)))) ->  | H143: =IF(A143="",IF(AND(A143="",A142=""),"",SUM($H$26:H142)),E143+G143) ->  | I143: =IF(A143="","",N143*$D$16*C143/D143) ->  | L143: =IF(A143="","",P143) ->  | M143: =IF(A143="","",N143-E143) ->  | N143: =IF(A143="","",M142) -> 
F144: =IF(A144="",IF(AND(A144="",A143=""),"",SUM($F$26:F143)),IF(P144=0,M144,O144)) ->  | G144: =IF(A144="",IF(AND(A144="",A143=""),"",SUM($G$26:G143)),IF(A144<=$F$19,0,IF(A144="",0,IF(P144=0,I144,L144)))) ->  | H144: =IF(A144="",IF(AND(A144="",A143=""),"",SUM($H$26:H143)),E144+G144) ->  | I144: =IF(A144="","",N144*$D$16*C144/D144) ->  | L144: =IF(A144="","",P144) ->  | M144: =IF(A144="","",N144-E144) ->  | N144: =IF(A144="","",M143) -> 
F145: =IF(A145="",IF(AND(A145="",A144=""),"",SUM($F$26:F144)),IF(P145=0,M145,O145)) ->  | G145: =IF(A145="",IF(AND(A145="",A144=""),"",SUM($G$26:G144)),IF(A145<=$F$19,0,IF(A145="",0,IF(P145=0,I145,L145)))) ->  | H145: =IF(A145="",IF(AND(A145="",A144=""),"",SUM($H$26:H144)),E145+G145) ->  | I145: =IF(A145="","",N145*$D$16*C145/D145) ->  | L145: =IF(A145="","",P145) ->  | M145: =IF(A145="","",N145-E145) ->  | N145: =IF(A145="","",M144) -> 
F146: =IF(A146="",IF(AND(A146="",A145=""),"",SUM($F$26:F145)),IF(P146=0,M146,O146)) ->  | G146: =IF(A146="",IF(AND(A146="",A145=""),"",SUM($G$26:G145)),IF(A146<=$F$19,0,IF(A146="",0,IF(P146=0,I146,L146)))) ->  | H146: =IF(A146="",IF(AND(A146="",A145=""),"",SUM($H$26:H145)),E146+G146) ->  | I146: =IF(A146="","",N146*$D$16*C146/D146) ->  | L146: =IF(A146="","",P146) ->  | M146: =IF(A146="","",N146-E146) ->  | N146: =IF(A146="","",M145) -> 
F147: =IF(A147="",IF(AND(A147="",A146=""),"",SUM($F$26:F146)),IF(P147=0,M147,O147)) ->  | G147: =IF(A147="",IF(AND(A147="",A146=""),"",SUM($G$26:G146)),IF(A147<=$F$19,0,IF(A147="",0,IF(P147=0,I147,L147)))) ->  | H147: =IF(A147="",IF(AND(A147="",A146=""),"",SUM($H$26:H146)),E147+G147) ->  | I147: =IF(A147="","",N147*$D$16*C147/D147) ->  | L147: =IF(A147="","",P147) ->  | M147: =IF(A147="","",N147-E147) ->  | N147: =IF(A147="","",M146) -> 
F148: =IF(A148="",IF(AND(A148="",A147=""),"",SUM($F$26:F147)),IF(P148=0,M148,O148)) ->  | G148: =IF(A148="",IF(AND(A148="",A147=""),"",SUM($G$26:G147)),IF(A148<=$F$19,0,IF(A148="",0,IF(P148=0,I148,L148)))) ->  | H148: =IF(A148="",IF(AND(A148="",A147=""),"",SUM($H$26:H147)),E148+G148) ->  | I148: =IF(A148="","",N148*$D$16*C148/D148) ->  | L148: =IF(A148="","",P148) ->  | M148: =IF(A148="","",N148-E148) ->  | N148: =IF(A148="","",M147) -> 
F149: =IF(A149="",IF(AND(A149="",A148=""),"",SUM($F$26:F148)),IF(P149=0,M149,O149)) ->  | G149: =IF(A149="",IF(AND(A149="",A148=""),"",SUM($G$26:G148)),IF(A149<=$F$19,0,IF(A149="",0,IF(P149=0,I149,L149)))) ->  | H149: =IF(A149="",IF(AND(A149="",A148=""),"",SUM($H$26:H148)),E149+G149) ->  | I149: =IF(A149="","",N149*$D$16*C149/D149) ->  | L149: =IF(A149="","",P149) ->  | M149: =IF(A149="","",N149-E149) ->  | N149: =IF(A149="","",M148) -> 
F150: =IF(A150="",IF(AND(A150="",A149=""),"",SUM($F$26:F149)),IF(P150=0,M150,O150)) ->  | G150: =IF(A150="",IF(AND(A150="",A149=""),"",SUM($G$26:G149)),IF(A150<=$F$19,0,IF(A150="",0,IF(P150=0,I150,L150)))) ->  | H150: =IF(A150="",IF(AND(A150="",A149=""),"",SUM($H$26:H149)),E150+G150) ->  | I150: =IF(A150="","",N150*$D$16*C150/D150) ->  | L150: =IF(A150="","",P150) ->  | M150: =IF(A150="","",N150-E150) ->  | N150: =IF(A150="","",M149) -> 
F151: =IF(A151="",IF(AND(A151="",A150=""),"",SUM($F$26:F150)),IF(P151=0,M151,O151)) ->  | G151: =IF(A151="",IF(AND(A151="",A150=""),"",SUM($G$26:G150)),IF(A151<=$F$19,0,IF(A151="",0,IF(P151=0,I151,L151)))) ->  | H151: =IF(A151="",IF(AND(A151="",A150=""),"",SUM($H$26:H150)),E151+G151) ->  | I151: =IF(A151="","",N151*$D$16*C151/D151) ->  | L151: =IF(A151="","",P151) ->  | M151: =IF(A151="","",N151-E151) ->  | N151: =IF(A151="","",M150) -> 
F152: =IF(A152="",IF(AND(A152="",A151=""),"",SUM($F$26:F151)),IF(P152=0,M152,O152)) ->  | G152: =IF(A152="",IF(AND(A152="",A151=""),"",SUM($G$26:G151)),IF(A152<=$F$19,0,IF(A152="",0,IF(P152=0,I152,L152)))) ->  | H152: =IF(A152="",IF(AND(A152="",A151=""),"",SUM($H$26:H151)),E152+G152) ->  | I152: =IF(A152="","",N152*$D$16*C152/D152) ->  | L152: =IF(A152="","",P152) ->  | M152: =IF(A152="","",N152-E152) ->  | N152: =IF(A152="","",M151) -> 
F153: =IF(A153="",IF(AND(A153="",A152=""),"",SUM($F$26:F152)),IF(P153=0,M153,O153)) ->  | G153: =IF(A153="",IF(AND(A153="",A152=""),"",SUM($G$26:G152)),IF(A153<=$F$19,0,IF(A153="",0,IF(P153=0,I153,L153)))) ->  | H153: =IF(A153="",IF(AND(A153="",A152=""),"",SUM($H$26:H152)),E153+G153) ->  | I153: =IF(A153="","",N153*$D$16*C153/D153) ->  | L153: =IF(A153="","",P153) ->  | M153: =IF(A153="","",N153-E153) ->  | N153: =IF(A153="","",M152) -> 
F154: =IF(A154="",IF(AND(A154="",A153=""),"",SUM($F$26:F153)),IF(P154=0,M154,O154)) ->  | G154: =IF(A154="",IF(AND(A154="",A153=""),"",SUM($G$26:G153)),IF(A154<=$F$19,0,IF(A154="",0,IF(P154=0,I154,L154)))) ->  | H154: =IF(A154="",IF(AND(A154="",A153=""),"",SUM($H$26:H153)),E154+G154) ->  | I154: =IF(A154="","",N154*$D$16*C154/D154) ->  | L154: =IF(A154="","",P154) ->  | M154: =IF(A154="","",N154-E154) ->  | N154: =IF(A154="","",M153) -> 
F155: =IF(A155="",IF(AND(A155="",A154=""),"",SUM($F$26:F154)),IF(P155=0,M155,O155)) ->  | G155: =IF(A155="",IF(AND(A155="",A154=""),"",SUM($G$26:G154)),IF(A155<=$F$19,0,IF(A155="",0,IF(P155=0,I155,L155)))) ->  | H155: =IF(A155="",IF(AND(A155="",A154=""),"",SUM($H$26:H154)),E155+G155) ->  | I155: =IF(A155="","",N155*$D$16*C155/D155) ->  | L155: =IF(A155="","",P155) ->  | M155: =IF(A155="","",N155-E155) ->  | N155: =IF(A155="","",M154) -> 
A156: =IF(A155>=$F$22,"",A155+1) ->  | C156: =IF(A156="","",B156-B155) ->  | D156: =IF(MOD(YEAR(B156),4)=0,366,365) ->  | E156: =IF(A156="","",IF(A156<=$F$20,0,IF(A156="",0,$F$18))) ->  | F156: =IF(A156="",IF(AND(A156="",A155=""),"",SUM($F$26:F155)),IF(P156=0,M156,O156)) ->  | G156: =IF(A156="",IF(AND(A156="",A155=""),"",SUM($G$26:G155)),IF(A156<=$F$19,0,IF(A156="",0,IF(P156=0,I156,L156)))) ->  | H156: =IF(A156="",IF(AND(A156="",A155=""),"",SUM($H$26:H155)),E156+G156) ->  | I156: =IF(A156="","",N156*$D$16*C156/D156) ->  | J156: =IF(A156="","","с "&TEXT(B156+1,"ДД.ММ.ГГГГ")&" по "&TEXT(B157,"ДД.ММ.ГГГГ")) ->  | K156: =IF(A156="","",C156) ->  | L156: =IF(A156="","",P156) ->  | M156: =IF(A156="","",N156-E156) ->  | N156: =IF(A156="","",M155) -> 
B157: =IF(A157="","",DATE(YEAR(B156),MONTH(B156)+1,DAY(B156))) ->  | F157: =IF(A157="",IF(AND(A157="",A156=""),"",SUM($F$26:F156)),IF(P157=0,M157,O157)) ->  | G157: =IF(A157="",IF(AND(A157="",A156=""),"",SUM($G$26:G156)),IF(A157<=$F$19,0,IF(A157="",0,IF(P157=0,I157,L157)))) ->  | H157: =IF(A157="",IF(AND(A157="",A156=""),"",SUM($H$26:H156)),E157+G157) ->  | I157: =IF(A157="","",N157*$D$16*C157/D157) ->  | L157: =IF(A157="","",P157) ->  | M157: =IF(A157="","",N157-E157) ->  | N157: =IF(A157="","",M156) -> 
F158: =IF(A158="",IF(AND(A158="",A157=""),"",SUM($F$26:F157)),IF(P158=0,M158,O158)) ->  | G158: =IF(A158="",IF(AND(A158="",A157=""),"",SUM($G$26:G157)),IF(A158<=$F$19,0,IF(A158="",0,IF(P158=0,I158,L158)))) ->  | H158: =IF(A158="",IF(AND(A158="",A157=""),"",SUM($H$26:H157)),E158+G158) ->  | I158: =IF(A158="","",N158*$D$16*C158/D158) ->  | L158: =IF(A158="","",P158) ->  | M158: =IF(A158="","",N158-E158) ->  | N158: =IF(A158="","",M157) -> 
F159: =IF(A159="",IF(AND(A159="",A158=""),"",SUM($F$26:F158)),IF(P159=0,M159,O159)) ->  | G159: =IF(A159="",IF(AND(A159="",A158=""),"",SUM($G$26:G158)),IF(A159<=$F$19,0,IF(A159="",0,IF(P159=0,I159,L159)))) ->  | H159: =IF(A159="",IF(AND(A159="",A158=""),"",SUM($H$26:H158)),E159+G159) ->  | I159: =IF(A159="","",N159*$D$16*C159/D159) ->  | L159: =IF(A159="","",P159) ->  | M159: =IF(A159="","",N159-E159) ->  | N159: =IF(A159="","",M158) -> 
F160: =IF(A160="",IF(AND(A160="",A159=""),"",SUM($F$26:F159)),IF(P160=0,M160,O160)) ->  | G160: =IF(A160="",IF(AND(A160="",A159=""),"",SUM($G$26:G159)),IF(A160<=$F$19,0,IF(A160="",0,IF(P160=0,I160,L160)))) ->  | H160: =IF(A160="",IF(AND(A160="",A159=""),"",SUM($H$26:H159)),E160+G160) ->  | I160: =IF(A160="","",N160*$D$16*C160/D160) ->  | L160: =IF(A160="","",P160) ->  | M160: =IF(A160="","",N160-E160) ->  | N160: =IF(A160="","",M159) -> 
F161: =IF(A161="",IF(AND(A161="",A160=""),"",SUM($F$26:F160)),IF(P161=0,M161,O161)) ->  | G161: =IF(A161="",IF(AND(A161="",A160=""),"",SUM($G$26:G160)),IF(A161<=$F$19,0,IF(A161="",0,IF(P161=0,I161,L161)))) ->  | H161: =IF(A161="",IF(AND(A161="",A160=""),"",SUM($H$26:H160)),E161+G161) ->  | I161: =IF(A161="","",N161*$D$16*C161/D161) ->  | L161: =IF(A161="","",P161) ->  | M161: =IF(A161="","",N161-E161) ->  | N161: =IF(A161="","",M160) -> 
F162: =IF(A162="",IF(AND(A162="",A161=""),"",SUM($F$26:F161)),IF(P162=0,M162,O162)) ->  | G162: =IF(A162="",IF(AND(A162="",A161=""),"",SUM($G$26:G161)),IF(A162<=$F$19,0,IF(A162="",0,IF(P162=0,I162,L162)))) ->  | H162: =IF(A162="",IF(AND(A162="",A161=""),"",SUM($H$26:H161)),E162+G162) ->  | I162: =IF(A162="","",N162*$D$16*C162/D162) ->  | L162: =IF(A162="","",P162) ->  | M162: =IF(A162="","",N162-E162) ->  | N162: =IF(A162="","",M161) -> 
A163: =IF(A162>=$F$22,"",A162+1) ->  | F163: =IF(A163="",IF(AND(A163="",A162=""),"",SUM($F$26:F162)),IF(P163=0,M163,O163)) ->  | G163: =IF(A163="",IF(AND(A163="",A162=""),"",SUM($G$26:G162)),IF(A163<=$F$19,0,IF(A163="",0,IF(P163=0,I163,L163)))) ->  | H163: =IF(A163="",IF(AND(A163="",A162=""),"",SUM($H$26:H162)),E163+G163) ->  | I163: =IF(A163="","",N163*$D$16*C163/D163) ->  | L163: =IF(A163="","",P163) ->  | M163: =IF(A163="","",N163-E163) ->  | N163: =IF(A163="","",M162) -> 
F164: =IF(A164="",IF(AND(A164="",A163=""),"",SUM($F$26:F163)),IF(P164=0,M164,O164)) ->  | G164: =IF(A164="",IF(AND(A164="",A163=""),"",SUM($G$26:G163)),IF(A164<=$F$19,0,IF(A164="",0,IF(P164=0,I164,L164)))) ->  | H164: =IF(A164="",IF(AND(A164="",A163=""),"",SUM($H$26:H163)),E164+G164) ->  | I164: =IF(A164="","",N164*$D$16*C164/D164) ->  | L164: =IF(A164="","",P164) ->  | M164: =IF(A164="","",N164-E164) ->  | N164: =IF(A164="","",M163) -> 
F165: =IF(A165="",IF(AND(A165="",A164=""),"",SUM($F$26:F164)),IF(P165=0,M165,O165)) ->  | G165: =IF(A165="",IF(AND(A165="",A164=""),"",SUM($G$26:G164)),IF(A165<=$F$19,0,IF(A165="",0,IF(P165=0,I165,L165)))) ->  | H165: =IF(A165="",IF(AND(A165="",A164=""),"",SUM($H$26:H164)),E165+G165) ->  | I165: =IF(A165="","",N165*$D$16*C165/D165) ->  | L165: =IF(A165="","",P165) ->  | M165: =IF(A165="","",N165-E165) ->  | N165: =IF(A165="","",M164) -> 
F166: =IF(A166="",IF(AND(A166="",A165=""),"",SUM($F$26:F165)),IF(P166=0,M166,O166)) ->  | G166: =IF(A166="",IF(AND(A166="",A165=""),"",SUM($G$26:G165)),IF(A166<=$F$19,0,IF(A166="",0,IF(P166=0,I166,L166)))) ->  | H166: =IF(A166="",IF(AND(A166="",A165=""),"",SUM($H$26:H165)),E166+G166) ->  | I166: =IF(A166="","",N166*$D$16*C166/D166) ->  | L166: =IF(A166="","",P166) ->  | M166: =IF(A166="","",N166-E166) ->  | N166: =IF(A166="","",M165) -> 
F167: =IF(A167="",IF(AND(A167="",A166=""),"",SUM($F$26:F166)),IF(P167=0,M167,O167)) ->  | G167: =IF(A167="",IF(AND(A167="",A166=""),"",SUM($G$26:G166)),IF(A167<=$F$19,0,IF(A167="",0,IF(P167=0,I167,L167)))) ->  | H167: =IF(A167="",IF(AND(A167="",A166=""),"",SUM($H$26:H166)),E167+G167) ->  | I167: =IF(A167="","",N167*$D$16*C167/D167) ->  | L167: =IF(A167="","",P167) ->  | M167: =IF(A167="","",N167-E167) ->  | N167: =IF(A167="","",M166) -> 
F168: =IF(A168="",IF(AND(A168="",A167=""),"",SUM($F$26:F167)),IF(P168=0,M168,O168)) ->  | G168: =IF(A168="",IF(AND(A168="",A167=""),"",SUM($G$26:G167)),IF(A168<=$F$19,0,IF(A168="",0,IF(P168=0,I168,L168)))) ->  | H168: =IF(A168="",IF(AND(A168="",A167=""),"",SUM($H$26:H167)),E168+G168) ->  | I168: =IF(A168="","",N168*$D$16*C168/D168) ->  | L168: =IF(A168="","",P168) ->  | M168: =IF(A168="","",N168-E168) ->  | N168: =IF(A168="","",M167) -> 
F169: =IF(A169="",IF(AND(A169="",A168=""),"",SUM($F$26:F168)),IF(P169=0,M169,O169)) ->  | G169: =IF(A169="",IF(AND(A169="",A168=""),"",SUM($G$26:G168)),IF(A169<=$F$19,0,IF(A169="",0,IF(P169=0,I169,L169)))) ->  | H169: =IF(A169="",IF(AND(A169="",A168=""),"",SUM($H$26:H168)),E169+G169) ->  | I169: =IF(A169="","",N169*$D$16*C169/D169) ->  | L169: =IF(A169="","",P169) ->  | M169: =IF(A169="","",N169-E169) ->  | N169: =IF(A169="","",M168) -> 
F170: =IF(A170="",IF(AND(A170="",A169=""),"",SUM($F$26:F169)),IF(P170=0,M170,O170)) ->  | G170: =IF(A170="",IF(AND(A170="",A169=""),"",SUM($G$26:G169)),IF(A170<=$F$19,0,IF(A170="",0,IF(P170=0,I170,L170)))) ->  | H170: =IF(A170="",IF(AND(A170="",A169=""),"",SUM($H$26:H169)),E170+G170) ->  | I170: =IF(A170="","",N170*$D$16*C170/D170) ->  | L170: =IF(A170="","",P170) ->  | M170: =IF(A170="","",N170-E170) ->  | N170: =IF(A170="","",M169) -> 
F171: =IF(A171="",IF(AND(A171="",A170=""),"",SUM($F$26:F170)),IF(P171=0,M171,O171)) ->  | G171: =IF(A171="",IF(AND(A171="",A170=""),"",SUM($G$26:G170)),IF(A171<=$F$19,0,IF(A171="",0,IF(P171=0,I171,L171)))) ->  | H171: =IF(A171="",IF(AND(A171="",A170=""),"",SUM($H$26:H170)),E171+G171) ->  | I171: =IF(A171="","",N171*$D$16*C171/D171) ->  | L171: =IF(A171="","",P171) ->  | M171: =IF(A171="","",N171-E171) ->  | N171: =IF(A171="","",M170) -> 
F172: =IF(A172="",IF(AND(A172="",A171=""),"",SUM($F$26:F171)),IF(P172=0,M172,O172)) ->  | G172: =IF(A172="",IF(AND(A172="",A171=""),"",SUM($G$26:G171)),IF(A172<=$F$19,0,IF(A172="",0,IF(P172=0,I172,L172)))) ->  | H172: =IF(A172="",IF(AND(A172="",A171=""),"",SUM($H$26:H171)),E172+G172) ->  | I172: =IF(A172="","",N172*$D$16*C172/D172) ->  | L172: =IF(A172="","",P172) ->  | M172: =IF(A172="","",N172-E172) ->  | N172: =IF(A172="","",M171) -> 
F173: =IF(A173="",IF(AND(A173="",A172=""),"",SUM($F$26:F172)),IF(P173=0,M173,O173)) ->  | G173: =IF(A173="",IF(AND(A173="",A172=""),"",SUM($G$26:G172)),IF(A173<=$F$19,0,IF(A173="",0,IF(P173=0,I173,L173)))) ->  | H173: =IF(A173="",IF(AND(A173="",A172=""),"",SUM($H$26:H172)),E173+G173) ->  | I173: =IF(A173="","",N173*$D$16*C173/D173) ->  | L173: =IF(A173="","",P173) ->  | M173: =IF(A173="","",N173-E173) ->  | N173: =IF(A173="","",M172) -> 
F174: =IF(A174="",IF(AND(A174="",A173=""),"",SUM($F$26:F173)),IF(P174=0,M174,O174)) ->  | G174: =IF(A174="",IF(AND(A174="",A173=""),"",SUM($G$26:G173)),IF(A174<=$F$19,0,IF(A174="",0,IF(P174=0,I174,L174)))) ->  | H174: =IF(A174="",IF(AND(A174="",A173=""),"",SUM($H$26:H173)),E174+G174) ->  | I174: =IF(A174="","",N174*$D$16*C174/D174) ->  | L174: =IF(A174="","",P174) ->  | M174: =IF(A174="","",N174-E174) ->  | N174: =IF(A174="","",M173) -> 
F175: =IF(A175="",IF(AND(A175="",A174=""),"",SUM($F$26:F174)),IF(P175=0,M175,O175)) ->  | G175: =IF(A175="",IF(AND(A175="",A174=""),"",SUM($G$26:G174)),IF(A175<=$F$19,0,IF(A175="",0,IF(P175=0,I175,L175)))) ->  | H175: =IF(A175="",IF(AND(A175="",A174=""),"",SUM($H$26:H174)),E175+G175) ->  | I175: =IF(A175="","",N175*$D$16*C175/D175) ->  | L175: =IF(A175="","",P175) ->  | M175: =IF(A175="","",N175-E175) ->  | N175: =IF(A175="","",M174) -> 
F176: =IF(A176="",IF(AND(A176="",A175=""),"",SUM($F$26:F175)),IF(P176=0,M176,O176)) ->  | G176: =IF(A176="",IF(AND(A176="",A175=""),"",SUM($G$26:G175)),IF(A176<=$F$19,0,IF(A176="",0,IF(P176=0,I176,L176)))) ->  | H176: =IF(A176="",IF(AND(A176="",A175=""),"",SUM($H$26:H175)),E176+G176) ->  | I176: =IF(A176="","",N176*$D$16*C176/D176) ->  | L176: =IF(A176="","",P176) ->  | M176: =IF(A176="","",N176-E176) ->  | N176: =IF(A176="","",M175) -> 
F177: =IF(A177="",IF(AND(A177="",A176=""),"",SUM($F$26:F176)),IF(P177=0,M177,O177)) ->  | G177: =IF(A177="",IF(AND(A177="",A176=""),"",SUM($G$26:G176)),IF(A177<=$F$19,0,IF(A177="",0,IF(P177=0,I177,L177)))) ->  | H177: =IF(A177="",IF(AND(A177="",A176=""),"",SUM($H$26:H176)),E177+G177) ->  | I177: =IF(A177="","",N177*$D$16*C177/D177) ->  | L177: =IF(A177="","",P177) ->  | M177: =IF(A177="","",N177-E177) ->  | N177: =IF(A177="","",M176) -> 
F178: =IF(A178="",IF(AND(A178="",A177=""),"",SUM($F$26:F177)),IF(P178=0,M178,O178)) ->  | G178: =IF(A178="",IF(AND(A178="",A177=""),"",SUM($G$26:G177)),IF(A178<=$F$19,0,IF(A178="",0,IF(P178=0,I178,L178)))) ->  | H178: =IF(A178="",IF(AND(A178="",A177=""),"",SUM($H$26:H177)),E178+G178) ->  | I178: =IF(A178="","",N178*$D$16*C178/D178) ->  | L178: =IF(A178="","",P178) ->  | M178: =IF(A178="","",N178-E178) ->  | N178: =IF(A178="","",M177) ->  | O178: =IF(A178="","",(P178*D178)/$D$16/C178) ->  | S178: =IF(A178="","",) ->  | T178: =IF(A178="","",((O178*C178)/(100*D178))*3) ->  | U178: =IF(A178="","",) ->  | V178: =IF(A178="","",((O178*C178*$O$17)/(100*D178))*1) ->  | X178: =IF(A178="","",SUM(T178,V178)) -> 
F179: =IF(A179="",IF(AND(A179="",A178=""),"",SUM($F$26:F178)),IF(P179=0,M179,O179)) ->  | G179: =IF(A179="",IF(AND(A179="",A178=""),"",SUM($G$26:G178)),IF(A179<=$F$19,0,IF(A179="",0,IF(P179=0,I179,L179)))) ->  | H179: =IF(A179="",IF(AND(A179="",A178=""),"",SUM($H$26:H178)),E179+G179) ->  | I179: =IF(A179="","",N179*$D$16*C179/D179) ->  | L179: =IF(A179="","",P179) ->  | M179: =IF(A179="","",N179-E179) ->  | N179: =IF(A179="","",M178) ->  | O179: =IF(A179="","",(P179*D179)/$D$16/C179) ->  | T179: =IF(A179="","",((O179*C179)/(100*D179))*3) ->  | V179: =IF(A179="","",((O179*C179*$O$17)/(100*D179))*1) ->  | X179: =IF(A179="","",SUM(T179,V179)) -> 
F180: =IF(A180="",IF(AND(A180="",A179=""),"",SUM($F$26:F179)),IF(P180=0,M180,O180)) ->  | G180: =IF(A180="",IF(AND(A180="",A179=""),"",SUM($G$26:G179)),IF(A180<=$F$19,0,IF(A180="",0,IF(P180=0,I180,L180)))) ->  | H180: =IF(A180="",IF(AND(A180="",A179=""),"",SUM($H$26:H179)),E180+G180) ->  | I180: =IF(A180="","",N180*$D$16*C180/D180) ->  | L180: =IF(A180="","",P180) ->  | M180: =IF(A180="","",N180-E180) ->  | N180: =IF(A180="","",M179) ->  | O180: =IF(A180="","",(P180*D180)/$D$16/C180) ->  | T180: =IF(A180="","",((O180*C180)/(100*D180))*3) ->  | V180: =IF(A180="","",((O180*C180*$O$17)/(100*D180))*1) ->  | X180: =IF(A180="","",SUM(T180,V180)) -> 
F181: =IF(A181="",IF(AND(A181="",A180=""),"",SUM($F$26:F180)),IF(P181=0,M181,O181)) ->  | G181: =IF(A181="",IF(AND(A181="",A180=""),"",SUM($G$26:G180)),IF(A181<=$F$19,0,IF(A181="",0,IF(P181=0,I181,L181)))) ->  | H181: =IF(A181="",IF(AND(A181="",A180=""),"",SUM($H$26:H180)),E181+G181) ->  | I181: =IF(A181="","",N181*$D$16*C181/D181) ->  | L181: =IF(A181="","",P181) ->  | M181: =IF(A181="","",N181-E181) ->  | N181: =IF(A181="","",M180) ->  | O181: =IF(A181="","",(P181*D181)/$D$16/C181) ->  | T181: =IF(A181="","",((O181*C181)/(100*D181))*3) ->  | V181: =IF(A181="","",((O181*C181*$O$17)/(100*D181))*1) ->  | X181: =IF(A181="","",SUM(T181,V181)) -> 
F182: =IF(A182="",IF(AND(A182="",A181=""),"",SUM($F$26:F181)),IF(P182=0,M182,O182)) ->  | G182: =IF(A182="",IF(AND(A182="",A181=""),"",SUM($G$26:G181)),IF(A182<=$F$19,0,IF(A182="",0,IF(P182=0,I182,L182)))) ->  | H182: =IF(A182="",IF(AND(A182="",A181=""),"",SUM($H$26:H181)),E182+G182) ->  | I182: =IF(A182="","",N182*$D$16*C182/D182) ->  | L182: =IF(A182="","",P182) ->  | M182: =IF(A182="","",N182-E182) ->  | N182: =IF(A182="","",M181) ->  | O182: =IF(A182="","",(P182*D182)/$D$16/C182) ->  | T182: =IF(A182="","",((O182*C182)/(100*D182))*3) ->  | V182: =IF(A182="","",((O182*C182*$O$17)/(100*D182))*1) ->  | X182: =IF(A182="","",SUM(T182,V182)) -> 
F183: =IF(A183="",IF(AND(A183="",A182=""),"",SUM($F$26:F182)),IF(P183=0,M183,O183)) ->  | G183: =IF(A183="",IF(AND(A183="",A182=""),"",SUM($G$26:G182)),IF(A183<=$F$19,0,IF(A183="",0,IF(P183=0,I183,L183)))) ->  | H183: =IF(A183="",IF(AND(A183="",A182=""),"",SUM($H$26:H182)),E183+G183) ->  | I183: =IF(A183="","",N183*$D$16*C183/D183) ->  | L183: =IF(A183="","",P183) ->  | M183: =IF(A183="","",N183-E183) ->  | N183: =IF(A183="","",M182) ->  | O183: =IF(A183="","",(P183*D183)/$D$16/C183) ->  | T183: =IF(A183="","",((O183*C183)/(100*D183))*3) ->  | V183: =IF(A183="","",((O183*C183*$O$17)/(100*D183))*1) ->  | X183: =IF(A183="","",SUM(T183,V183)) -> 
F184: =IF(A184="",IF(AND(A184="",A183=""),"",SUM($F$26:F183)),IF(P184=0,M184,O184)) ->  | G184: =IF(A184="",IF(AND(A184="",A183=""),"",SUM($G$26:G183)),IF(A184<=$F$19,0,IF(A184="",0,IF(P184=0,I184,L184)))) ->  | H184: =IF(A184="",IF(AND(A184="",A183=""),"",SUM($H$26:H183)),E184+G184) ->  | I184: =IF(A184="","",N184*$D$16*C184/D184) ->  | L184: =IF(A184="","",P184) ->  | M184: =IF(A184="","",N184-E184) ->  | N184: =IF(A184="","",M183) ->  | O184: =IF(A184="","",(P184*D184)/$D$16/C184) ->  | T184: =IF(A184="","",((O184*C184)/(100*D184))*3) ->  | V184: =IF(A184="","",((O184*C184*$O$17)/(100*D184))*1) ->  | X184: =IF(A184="","",SUM(T184,V184)) -> 
F185: =IF(A185="",IF(AND(A185="",A184=""),"",SUM($F$26:F184)),IF(P185=0,M185,O185)) ->  | G185: =IF(A185="",IF(AND(A185="",A184=""),"",SUM($G$26:G184)),IF(A185<=$F$19,0,IF(A185="",0,IF(P185=0,I185,L185)))) ->  | H185: =IF(A185="",IF(AND(A185="",A184=""),"",SUM($H$26:H184)),E185+G185) ->  | I185: =IF(A185="","",N185*$D$16*C185/D185) ->  | L185: =IF(A185="","",P185) ->  | M185: =IF(A185="","",N185-E185) ->  | N185: =IF(A185="","",M184) ->  | O185: =IF(A185="","",(P185*D185)/$D$16/C185) ->  | T185: =IF(A185="","",((O185*C185)/(100*D185))*3) ->  | V185: =IF(A185="","",((O185*C185*$O$17)/(100*D185))*1) ->  | X185: =IF(A185="","",SUM(T185,V185)) -> 
F186: =IF(A186="",IF(AND(A186="",A185=""),"",SUM($F$26:F185)),IF(P186=0,M186,O186)) ->  | G186: =IF(A186="",IF(AND(A186="",A185=""),"",SUM($G$26:G185)),IF(A186<=$F$19,0,IF(A186="",0,IF(P186=0,I186,L186)))) ->  | H186: =IF(A186="",IF(AND(A186="",A185=""),"",SUM($H$26:H185)),E186+G186) ->  | I186: =IF(A186="","",N186*$D$16*C186/D186) ->  | L186: =IF(A186="","",P186) ->  | M186: =IF(A186="","",N186-E186) ->  | N186: =IF(A186="","",M185) ->  | O186: =IF(A186="","",(P186*D186)/$D$16/C186) ->  | T186: =IF(A186="","",((O186*C186)/(100*D186))*3) ->  | V186: =IF(A186="","",((O186*C186*$O$17)/(100*D186))*1) ->  | X186: =IF(A186="","",SUM(T186,V186)) -> 
F187: =IF(A187="",IF(AND(A187="",A186=""),"",SUM($F$26:F186)),IF(P187=0,M187,O187)) ->  | G187: =IF(A187="",IF(AND(A187="",A186=""),"",SUM($G$26:G186)),IF(A187<=$F$19,0,IF(A187="",0,IF(P187=0,I187,L187)))) ->  | H187: =IF(A187="",IF(AND(A187="",A186=""),"",SUM($H$26:H186)),E187+G187) ->  | I187: =IF(A187="","",N187*$D$16*C187/D187) ->  | L187: =IF(A187="","",P187) ->  | M187: =IF(A187="","",N187-E187) ->  | N187: =IF(A187="","",M186) ->  | O187: =IF(A187="","",(P187*D187)/$D$16/C187) ->  | T187: =IF(A187="","",((O187*C187)/(100*D187))*3) ->  | V187: =IF(A187="","",((O187*C187*$O$17)/(100*D187))*1) ->  | X187: =IF(A187="","",SUM(T187,V187)) -> 
F188: =IF(A188="",IF(AND(A188="",A187=""),"",SUM($F$26:F187)),IF(P188=0,M188,O188)) ->  | G188: =IF(A188="",IF(AND(A188="",A187=""),"",SUM($G$26:G187)),IF(A188<=$F$19,0,IF(A188="",0,IF(P188=0,I188,L188)))) ->  | H188: =IF(A188="",IF(AND(A188="",A187=""),"",SUM($H$26:H187)),E188+G188) ->  | I188: =IF(A188="","",N188*$D$16*C188/D188) ->  | L188: =IF(A188="","",P188) ->  | M188: =IF(A188="","",N188-E188) ->  | N188: =IF(A188="","",M187) ->  | O188: =IF(A188="","",(P188*D188)/$D$16/C188) ->  | T188: =IF(A188="","",((O188*C188)/(100*D188))*3) ->  | V188: =IF(A188="","",((O188*C188*$O$17)/(100*D188))*1) ->  | X188: =IF(A188="","",SUM(T188,V188)) -> 
F189: =IF(A189="","",IF(P189=0,M189,O189)) ->  | G189: =IF(A189="","",IF(P189=0,I189,L189)) ->  | H189: =IF(A189="","",E189+G189) ->  | I189: =IF(A189="","",N189*$D$16*C189/D189) ->  | L189: =IF(A189="","",P189) ->  | M189: =IF(A189="","",N189-E189) ->  | N189: =IF(A189="","",M188) ->  | O189: =IF(A189="","",(P189*D189)/$D$16/C189) ->  | T189: =IF(A189="","",((O189*C189)/(100*D189))*3) ->  | V189: =IF(A189="","",((O189*C189*$O$17)/(100*D189))*1) ->  | X189: =IF(A189="","",SUM(T189,V189)) -> 
F190: =IF(A190="","",IF(P190=0,M190,O190)) ->  | G190: =IF(A190="","",IF(P190=0,I190,L190)) ->  | I190: =IF(A190="","",N190*$D$16*C190/D190) ->  | L190: =IF(A190="","",P190) ->  | M190: =IF(A190="","",N190-E190) ->  | N190: =IF(A190="","",M189) ->  | O190: =IF(A190="","",(P190*D190)/$D$16/C190) ->  | T190: =IF(A190="","",((O190*C190)/(100*D190))*3) ->  | V190: =IF(A190="","",((O190*C190*$O$17)/(100*D190))*1) ->  | X190: =IF(A190="","",SUM(T190,V190)) -> 
F191: =IF(A191="","",IF(P191=0,M191,O191)) ->  | G191: =IF(A191="","",IF(P191=0,I191,L191)) ->  | I191: =IF(A191="","",N191*$D$16*C191/D191) ->  | L191: =IF(A191="","",P191) ->  | M191: =IF(A191="","",N191-E191) ->  | N191: =IF(A191="","",M190) ->  | O191: =IF(A191="","",(P191*D191)/$D$16/C191) ->  | T191: =IF(A191="","",((O191*C191)/(100*D191))*3) ->  | V191: =IF(A191="","",((O191*C191*$O$17)/(100*D191))*1) ->  | X191: =IF(A191="","",SUM(T191,V191)) -> 
F192: =IF(A192="","",IF(P192=0,M192,O192)) ->  | G192: =IF(A192="","",IF(P192=0,I192,L192)) ->  | I192: =IF(A192="","",N192*$D$16*C192/D192) ->  | L192: =IF(A192="","",P192) ->  | M192: =IF(A192="","",N192-E192) ->  | N192: =IF(A192="","",M191) ->  | O192: =IF(A192="","",(P192*D192)/$D$16/C192) ->  | T192: =IF(A192="","",((O192*C192)/(100*D192))*3) ->  | V192: =IF(A192="","",((O192*C192*$O$17)/(100*D192))*1) ->  | X192: =IF(A192="","",SUM(T192,V192)) -> 
F193: =IF(A193="","",IF(P193=0,M193,O193)) ->  | G193: =IF(A193="","",IF(P193=0,I193,L193)) ->  | I193: =IF(A193="","",N193*$D$16*C193/D193) ->  | L193: =IF(A193="","",P193) ->  | M193: =IF(A193="","",N193-E193) ->  | N193: =IF(A193="","",M192) ->  | O193: =IF(A193="","",(P193*D193)/$D$16/C193) ->  | T193: =IF(A193="","",((O193*C193)/(100*D193))*3) ->  | V193: =IF(A193="","",((O193*C193*$O$17)/(100*D193))*1) ->  | X193: =IF(A193="","",SUM(T193,V193)) -> 
F194: =IF(A194="","",IF(P194=0,M194,O194)) ->  | G194: =IF(A194="","",IF(P194=0,I194,L194)) ->  | I194: =IF(A194="","",N194*$D$16*C194/D194) ->  | L194: =IF(A194="","",P194) ->  | M194: =IF(A194="","",N194-E194) ->  | N194: =IF(A194="","",M193) ->  | O194: =IF(A194="","",(P194*D194)/$D$16/C194) ->  | T194: =IF(A194="","",((O194*C194)/(100*D194))*3) ->  | V194: =IF(A194="","",((O194*C194*$O$17)/(100*D194))*1) ->  | X194: =IF(A194="","",SUM(T194,V194)) -> 
F195: =IF(A195="","",IF(P195=0,M195,O195)) ->  | G195: =IF(A195="","",IF(P195=0,I195,L195)) ->  | I195: =IF(A195="","",N195*$D$16*C195/D195) ->  | L195: =IF(A195="","",P195) ->  | M195: =IF(A195="","",N195-E195) ->  | N195: =IF(A195="","",M194) ->  | O195: =IF(A195="","",(P195*D195)/$D$16/C195) ->  | T195: =IF(A195="","",((O195*C195)/(100*D195))*3) ->  | V195: =IF(A195="","",((O195*C195*$O$17)/(100*D195))*1) ->  | X195: =IF(A195="","",SUM(T195,V195)) -> 
F196: =IF(A196="","",IF(P196=0,M196,O196)) ->  | G196: =IF(A196="","",IF(P196=0,I196,L196)) ->  | I196: =IF(A196="","",N196*$D$16*C196/D196) ->  | L196: =IF(A196="","",P196) ->  | M196: =IF(A196="","",N196-E196) ->  | N196: =IF(A196="","",M195) ->  | O196: =IF(A196="","",(P196*D196)/$D$16/C196) ->  | T196: =IF(A196="","",((O196*C196)/(100*D196))*3) ->  | V196: =IF(A196="","",((O196*C196*$O$17)/(100*D196))*1) ->  | X196: =IF(A196="","",SUM(T196,V196)) -> 
F197: =IF(A197="","",IF(P197=0,M197,O197)) ->  | G197: =IF(A197="","",IF(P197=0,I197,L197)) ->  | I197: =IF(A197="","",N197*$D$16*C197/D197) ->  | L197: =IF(A197="","",P197) ->  | M197: =IF(A197="","",N197-E197) ->  | N197: =IF(A197="","",M196) ->  | O197: =IF(A197="","",(P197*D197)/$D$16/C197) ->  | T197: =IF(A197="","",((O197*C197)/(100*D197))*3) ->  | V197: =IF(A197="","",((O197*C197*$O$17)/(100*D197))*1) ->  | X197: =IF(A197="","",SUM(T197,V197)) -> 
F198: =IF(A198="","",IF(P198=0,M198,O198)) ->  | G198: =IF(A198="","",IF(P198=0,I198,L198)) ->  | I198: =IF(A198="","",N198*$D$16*C198/D198) ->  | L198: =IF(A198="","",P198) ->  | M198: =IF(A198="","",N198-E198) ->  | N198: =IF(A198="","",M197) ->  | O198: =IF(A198="","",(P198*D198)/$D$16/C198) ->  | T198: =IF(A198="","",((O198*C198)/(100*D198))*3) ->  | V198: =IF(A198="","",((O198*C198*$O$17)/(100*D198))*1) ->  | X198: =IF(A198="","",SUM(T198,V198)) -> 
F199: =IF(A199="","",IF(P199=0,M199,O199)) ->  | G199: =IF(A199="","",IF(P199=0,I199,L199)) ->  | I199: =IF(A199="","",N199*$D$16*C199/D199) ->  | L199: =IF(A199="","",P199) ->  | M199: =IF(A199="","",N199-E199) ->  | N199: =IF(A199="","",M198) ->  | O199: =IF(A199="","",(P199*D199)/$D$16/C199) ->  | T199: =IF(A199="","",((O199*C199)/(100*D199))*3) ->  | V199: =IF(A199="","",((O199*C199*$O$17)/(100*D199))*1) ->  | X199: =IF(A199="","",SUM(T199,V199)) -> 
F200: =IF(A200="","",IF(P200=0,M200,O200)) ->  | G200: =IF(A200="","",IF(P200=0,I200,L200)) ->  | I200: =IF(A200="","",N200*$D$16*C200/D200) ->  | L200: =IF(A200="","",P200) ->  | M200: =IF(A200="","",N200-E200) ->  | N200: =IF(A200="","",M199) ->  | O200: =IF(A200="","",(P200*D200)/$D$16/C200) ->  | T200: =IF(A200="","",((O200*C200)/(100*D200))*3) ->  | V200: =IF(A200="","",((O200*C200*$O$17)/(100*D200))*1) ->  | X200: =IF(A200="","",SUM(T200,V200)) -> 

Sheet Лист2

Sheet Лист3
